Workbook

Sheet PORTADA
D63: Range(C12)
F73: 258963214
AL111: Len@range(a2)
K198: Len@25

Sheet MENU (hidden)
B5: Descripción | C5: Nombre de la hoja
B6: Fundamentos legales | C6: FUNDAMENTO
B7: Depreciación fiscal | C7: DEPRECIACIONF
B8: Depreciación fiscal en arrendamiento financiero | C8: DEPRECIACIONA
B9: Venta de activo fijo | C9: VENTAAF
B10: Tasas de depreciación fiscal | C10: TASAD
B11: Otros fundamentos | C11: OTROS
B12: Retenciones de ISR e IVA | C12: RETENCION
B13: Importación de archivos XML de nómina | C13: NOMINA
B14: Concentrado de XML de nómina | C14: CONCENTRADO
B15: Visor de XML de nómina | C15: VISORN
B16: Tabla INPC | C16: INPC

Sheet FUNDAMENTO (hidden)
B5: Disposición | C5: Fundamento
B6: En el caso de las devoluciones, descuentos o bonificaciones a que se refiere el artículo 25 de la Ley del Impuesto sobre la Renta, se deberán expedir comprobantes fiscales digitales por Internet. En el supuesto de que se emitan comprobantes que amparen egresos sin contar con la justificación y soporte documental que acredite las devoluciones, descuentos o bonificaciones ante las autoridades fiscales, éstos no podrán disminuirse de los comprobantes fiscales de ingresos del contribuyente, lo cual podrá ser verificado por éstas en el ejercicio de las facultades establecidas en este Código. | C6: Artículo 29 fracción VI tercer párrafo CFF
B7: Las reparaciones, así como las adaptaciones a las instalaciones se considerarán inversiones siempre que impliquen adiciones o mejoras al activo fijo. En ningún caso se considerarán inversiones los gastos por concepto de conservación, mantenimiento y reparación, que se eroguen con el objeto de mantener el bien de que se trate en condiciones de operación. | C7: Artículo 36 fracción I LISR
B8: Las inversiones en automóviles sólo serán deducibles hasta por un monto de $175,000.00. Tratándose de inversiones realizadas en automóviles cuya propulsión sea a través de baterías eléctricas recargables, así como los automóviles eléctricos que además cuenten con motor de combustión interna o con motor accionado por hidrógeno, sólo serán deducibles hasta por un monto de $250,000.00. Lo dispuesto en esta fracción no será aplicable tratándose de contribuyentes cuya actividad consista en el otorgamiento del uso o goce temporal de automóviles, siempre y cuando los destinen exclusivamente a dicha actividad. | C8: Artículo 36 fracción II LISR
B9: Los contribuyentes a que se refiere esta Sección determinarán la deducción por inversiones aplicando lo dispuesto en la Sección II del Capítulo II del Título II de esta Ley. Para estos efectos, se consideran inversiones las señaladas en el artículo 32 de esta Ley. Para los efectos de este artículo, los por cientos de deducción se aplicarán sobre el monto original de la inversión, aun cuando ésta no se haya pagado en su totalidad en el ejercicio en que proceda su deducción. Cuando no se pueda separar el monto original de la inversión de los intereses que en su caso se paguen por el financiamiento, el por ciento que corresponda se aplicará sobre el monto total, en cuyo caso, los intereses no podrán deducirse en los términos de la fracción V del artículo 103 de esta Ley. | C9: Artículo 104 LISR
B10: Activo fijo es el conjunto de bienes tangibles que utilicen los contribuyentes para la realización de sus actividades y que se demeriten por el uso en el servicio del contribuyente y por el transcurso del tiempo. La adquisición o fabricación de estos bienes tendrá siempre como finalidad la utilización de los mismos para el desarrollo de las actividades del contribuyente, y no la de ser enajenados dentro del curso normal de sus operaciones. | C10: Artículo 32 segundo párrafo LISR
B11: Para efectos de esta Ley, la adquisición del derecho de usufructo sobre un bien inmueble se considerará activo fijo. | C11: Artículo 32 tercer párrafo LISR
B12: Gastos diferidos son los activos intangibles representados por bienes o derechos que permitan reducir costos de operación, mejorar la calidad o aceptación de un producto, usar, disfrutar o explotar un bien, por un periodo limitado, inferior a la duración de la actividad de la persona moral. También se consideran gastos diferidos los activos intangibles que permitan la explotación de bienes del dominio público o la prestación de un servicio público concesionado. | C12: Artículo 32 cuarto párrafo LISR
B13: Cargos diferidos son aquéllos que reúnan los requisitos señalados en el párrafo anterior, excepto los relativos a la explotación de bienes del dominio público o a la prestación de un servicio público concesionado, pero cuyo beneficio sea por un periodo ilimitado que dependerá de la duración de la actividad de la persona moral. | C13: Artículo 32 quinto párrafo LISR
B14: Erogaciones realizadas en periodos preoperativos, son aquéllas que tienen por objeto la investigación y el desarrollo, relacionados con el diseño, elaboración, mejoramiento, empaque o distribución de un producto, así como con la prestación de un servicio, siempre que las erogaciones se efectúen antes de que el contribuyente enajene sus productos o preste sus servicios, en forma constante. Tratándose de industrias extractivas, estas erogaciones son las relacionadas con la exploración para la localización y cuantificación de nuevos yacimientos susceptibles de explotarse. No se considerarán erogaciones en periodo preoperativo las correspondientes a activos intangibles que permitan la exploración o explotación de bienes del dominio público, las cuales tendrán el tratamiento de gasto diferido. | C14: Artículo 32 sexto párrafo LISR
B15: Pagos en efectivo de sueldos Artículo 43. Para efectos del artículo 27, fracción III de la Ley, las erogaciones efectuadas por salarios y en general por la prestación de un servicio personal subordinado a que se refiere el artículo 94 de la Ley, pagadas en efectivo podrán ser deducibles, siempre que además de cumplir con todos los requisitos que señalan las disposiciones fiscales para la deducibilidad de dicho concepto, se cumpla con la obligación inherente a la emisión del comprobante fiscal correspondiente por concepto de nómina. Requisitos de deducciones que se extingan con la entrega de dinero 3.3.1.3. Para los efectos del artículo 27, fracción III de la Ley del ISR, se considera que el requisito de deducibilidad consistente en que los pagos cuyo monto exceda de $2,000.00 (dos mil pesos 00/100 M.N.), se efectúen mediante cheque nominativo del contribuyente, tarjeta de crédito, de débito o de servicios, o a través de monederos electrónicos autorizados por el SAT, solo es aplicable a las obligaciones que se cumplan o se extingan con la entrega de una cantidad en dinero, por lo que están exceptuados aquellos casos en los cuales el interés del acreedor queda satisfecho mediante cualquier otra forma de extinción de las obligaciones que den lugar a las contraprestaciones. LISR 27
B16: Deducción de combustibles para vehículos marítimos, aéreos y terrestres, adquiridos a través de monederos electrónicos autorizados por el SAT 3.3.1.7. Para los efectos del artículo 27, fracción III, primer y segundo párrafos de la Ley del ISR, las personas físicas y morales que adquieran combustibles para vehículos marítimos, aéreos y terrestres, a través de los monederos electrónicos que al efecto autorice el SAT, podrán comprobar la erogación de las comisiones y otros cargos que cobre el emisor del monedero electrónico por sus servicios, así como el pago por la adquisición de combustibles, con el CFDI y el complemento de estado de cuenta de combustibles para monederos electrónicos autorizados por el SAT, respectivamente, que expidan los emisores autorizados en términos de la regla 3.3.1.10., fracción III, por lo que las estaciones de servicio no deberán emitir el CFDI a los clientes adquirentes de combustibles, por las operaciones que se realicen a través de monederos electrónicos autorizados por el SAT. La deducción por la adquisición de combustibles, así como el acreditamiento de los impuestos trasladados podrá realizarse hasta que el contribuyente adquirente del combustible, cuente con el CFDI y el complemento a que se refiere el párrafo anterior y hasta por el monto que ampare el citado complemento. Lo dispuesto en esta regla no exime a la estación de servicio enajenante, de cumplir con la obligación de expedir CFDI por las operaciones realizadas con los monederos electrónicos de combustibles, para lo cual, deberá emitir con la misma periodicidad con la que recibe del emisor autorizado de monederos electrónicos el CFDI de egresos con el complemento de consumo de combustibles a que refiere la regla 3.3.1.10., fracción IV, un CFDI en términos de la regla 2.7.1.21., en donde conste por tipo de combustible, el total de litros enajenados a través de los monederos electrónicos autorizados, el precio unitario, los impuestos trasladados y el importe total, así como, incluir en el campo “Atributo Descripción del Elemento Concepto” la clave de la estación de servicio enajenante, el número de folio del CFDI de egresos antes mencionado y la clave en el RFC del emisor autorizado que lo emite. Los importes contenidos en el CFDI que emita la estación de servicio enajenante, en términos del párrafo anterior, deberán coincidir con el importe del CFDI de egresos y el complemento de consumo de combustibles a que refiere la regla 3.3.1.10., fracción IV. CFF 29, LISR 27, RMF 2023 2.7.1.21., 3.3.1.10.

Sheet DEPRECIACIONF (hidden)
B3: Determinación de la depreciación fiscal
B5: El monto original de la inversión comprende, además del precio del bien, los impuestos efectivamente pagados con motivo de la adquisición o importación del mismo a excepción del impuesto al valor agregado, así como las erogaciones por concepto de derechos, cuotas compensatorias, preparación del emplazamiento físico, instalación, montaje, manejo, entrega, fletes, transportes, acarreos, seguros contra riesgos en la transportación, manejo, comisiones sobre compras y honorarios a agentes o agencias aduanales, así como los relativos a los servicios contratados para que la inversión funcione. Tratándose de las inversiones en automóviles el monto original de la inversión también incluye el monto de las inversiones en equipo de blindaje. Fundamento: Artículo 31 segundo párrafo LISR
B7: Precio del bien
B8: (+) Impuestos efectivamente pagados (excepto el IVA)
B9: (+) Pago de derechos
B10: (+) Cuotas compensatorias
B11: (+) Preparación del emplazamiento físico
B12: (+) Instalación
B13: (+) Montaje
B14: (+) Manejo
B15: (+) Entrega
B16: (+) Fletes
B17: (+) Transportes
B18: (+) Acareos
B19: (+) Seguro contra riesgos de la transportación
B20: (+) Comisiones sobre compras
B21: (+) Honorarios a agentes o agencias aduanales
B22: (+) Servicios contratados para que la inversión funcione
B23: (+) Equipo de blindaje en caso de automóviles
B24: (=) Monto original de la inversión | C24: =SUM(C7:C23) -> 0
B26: Las inversiones únicamente se podrán deducir mediante la aplicación, en cada ejercicio, de los por cientos máximos autorizados por esta Ley, sobre el monto original de la inversión, con las limitaciones en deducciones que, en su caso, establezca esta Ley. Tratándose de ejercicios irregulares, la deducción correspondiente se efectuará en el por ciento que represente el número de meses completos del ejercicio en los que el bien haya sido utilizado por el contribuyente, respecto de doce meses. Cuando el bien se comience a utilizar después de iniciado el ejercicio y en el que se termine su deducción, ésta se efectuará con las mismas reglas que se aplican para los ejercicios irregulares. Fundamento: Artículo 31 primer párrafo LISR
B28: Fecha de adquisición | C28: 2023-05-19
B29: Fecha de cálculo | C29: 2024-08-29
B31: Precio del bien | C31: 158900
B32: (+) Impuestos efectivamente pagados (excepto el IVA)
B33: (+) Pago de derechos
B34: (+) Cuotas compensatorias
B35: (+) Preparación del emplazamiento físico
B36: (+) Instalación
B37: (+) Montaje
B38: (+) Manejo
B39: (+) Entrega
B40: (+) Fletes
B41: (+) Transportes
B42: (+) Acareos
B43: (+) Seguro contra riesgos de la transportación
B44: (+) Comisiones sobre compras
B45: (+) Honorarios a agentes o agencias aduanales
B46: (+) Servicios contratados para que la inversión funcione
B47: (+) Equipo de blindaje en caso de automóviles
B48: (=) Monto original de la inversión | C48: =SUM(C31:C47) -> 158900
B49: (x) Tasa de depreciación | C49: 0.1 | D49: =IFERROR(IF(C49>0,HYPERLINK("#TASAD!B67","% Menores"),""),"") -> % Menores
B50: (=) Depreciación fiscal | C50: =IFERROR(ROUND(C48*C49,2),0) -> 15890
B51: (/) Meses del ejercicio | C51: 12
B52: (x) Meses completos de utilización | C52: =IFERROR(IF(YEAR(C28)<YEAR(C29),DATEDIF(DATE(YEAR(C29),1,1),C29,"ym")+1,IF(DAY(C28)>1,DATEDIF(DATE(YEAR(C28),MONTH(EOMONTH(C28,1)),1),C29,"ym"),DATEDIF(C28,C29,"ym")+1)),"") -> 8
B53: (=) Depreciación fiscal proporcional | C53: =IFERROR(ROUND(C50/C51*C52,2),0) -> 10593.33
B55: Los contribuyentes ajustarán la deducción determinada en los términos de los párrafos primero y sexto de este artículo, multiplicándola por el factor de actualización correspondiente al periodo comprendido desde el mes en el que se adquirió el bien y hasta el último mes de la primera mitad del periodo en el que el bien haya sido utilizado durante el ejercicio por el que se efectúe la deducción. Fundamento: Artículo 31 séptimo párrafo LISR Cuando sea impar el número de meses comprendidos en el periodo en el que el bien haya sido utilizado en el ejercicio, se considerará como último mes de la primera mitad de dicho periodo el mes inmediato anterior al que corresponda la mitad del periodo. Fundamento: Artículo 31 octavo párrafo LISR
B57: Determinación del factor de actualización
B58: ="INPC Último mes de la primera mitadad de utilización en el ejercicio ("&IFERROR(IF(YEAR(C28)<YEAR(C29),PROPER(TEXT(DATE(YEAR(C29),DATEDIF(DATE(YEAR(C29),1,1),EOMONTH(C29,1),"M")/2,1),"MMMM")),PROPER(TEXT(DATE(YEAR(C28),MONTH(C29)-(ROUND(DATEDIF(C28,EOMONTH(C29,1),"M")-(DATEDIF(C28,EOMONTH(C29,1),"M")/2),0)),1),"MMMM"))),"")&" "&IF(IFERROR(IF(YEAR(C28)<YEAR(C29),PROPER(TEXT(DATE(YEAR(C29),DATEDIF(DATE(YEAR(C29),1,1),EOMONTH(C29,1),"M")/2,1),"MMMM")),PROPER(TEXT(DATE(YEAR(C28),MONTH(C29)-(ROUND(DATEDIF(C28,EOMONTH(C29,1),"M")-(DATEDIF(C28,EOMONTH(C29,1),"M")/2),0)),1),"MMMM"))),"")="Diciembre",YEAR(C29)-1,YEAR(C29))&")" -> INPC Último mes de la primera mitadad de utilización en el ejercicio (Abril 2024) | C58: =IFERROR(INDEX(TINPC,MATCH(IF(IFERROR(IF(YEAR(C28)<YEAR(C29),PROPER(TEXT(DATE(YEAR(C29),DATEDIF(DATE(YEAR(C29),1,1),EOMONTH(C29,1),"M")/2,1),"MMMM")),PROPER(TEXT(DATE(YEAR(C28),MONTH(C29)-(ROUND(DATEDIF(C28,EOMONTH(C29,1),"M")-(DATEDIF(C28,EOMONTH(C29,1),"M")/2),0)),1),"MMMM"))),"")="Diciembre",YEAR(C29)-1,YEAR(C29)),INPCA,0),MATCH(IFERROR(IF(YEAR(C28)<YEAR(C29),PROPER(TEXT(DATE(YEAR(C29),DATEDIF(DATE(YEAR(C29),1,1),EOMONTH(C29,1),"M")/2,1),"MMMM")),PROPER(TEXT(DATE(YEAR(C28),MONTH(C29)-(ROUND(DATEDIF(C28,EOMONTH(C29,1),"M")-(DATEDIF(C28,EOMONTH(C29,1),"M")/2),0)),1),"MMMM"))),""),INPCM,0)),"") -> 134.336
B59: ="(/) INPC "&TEXT(C28,"mmmm")&" "&YEAR(C28) -> (/) INPC mayo 2023 | C59: =IFERROR(INDEX(TINPC,MATCH(YEAR(C28),INPCA,0),MATCH(TEXT(C28,"MMMM"),INPCM,0)),"") -> 128.084
B60: (=) Factor de actualización | C60: =IFERROR(IF((C58/C59)<1,1,ROUND(C58/C59,4)),"") -> 1.0488
B63: Fecha de adquisición | C63: 2023-05-19
B64: Fecha de cálculo | C64: 2024-08-29
B66: Precio del bien | C66: 158900
B67: (+) Impuestos efectivamente pagados (excepto el IVA)
B68: (+) Pago de derechos
B69: (+) Cuotas compensatorias
B70: (+) Preparación del emplazamiento físico
B71: (+) Instalación
B72: (+) Montaje
B73: (+) Manejo
B74: (+) Entrega
B75: (+) Fletes
B76: (+) Transportes
B77: (+) Acareos
B78: (+) Seguro contra riesgos de la transportación
B79: (+) Comisiones sobre compras
B80: (+) Honorarios a agentes o agencias aduanales
B81: (+) Servicios contratados para que la inversión funcione
B82: (+) Equipo de blindaje en caso de automóviles
B83: (=) Monto original de la inversión | C83: =SUM(C66:C82) -> 158900
B84: (x) Tasa de depreciación | C84: 0.1 | D84: =IFERROR(IF(C84>0,HYPERLINK("#TASAD!B67","% Menores"),""),"") -> % Menores
B85: (=) Depreciación fiscal | C85: =IFERROR(ROUND(C83*C84,2),0) -> 15890
B86: (/) Meses del ejercicio | C86: 12
B87: (x) Meses completos de utilización | C87: =IFERROR(IF(YEAR(C63)<YEAR(C64),DATEDIF(DATE(YEAR(C64),1,1),C64,"ym")+1,IF(DAY(C63)>1,DATEDIF(DATE(YEAR(C63),MONTH(EOMONTH(C63,1)),1),C64,"ym"),DATEDIF(C63,C64,"ym")+1)),"") -> 8
B88: (=) Depreciación fiscal proporcional | C88: =IFERROR(ROUND(C85/C86*C87,2),0) -> 10593.33
B89: (x) Factor de actualización | C89: =IF(C60>0,C60,"") -> 1.0488
B90: (=) Depreciación fiscal proporcional actualizada | C90: =IFERROR(ROUND(C88*C89,2),"") -> 11110.28

Sheet DEPRECIACIONA (hidden)
B5: Determinación de la depreciación fiscal en arrendamiento financiero
B7: Artículo 408 LGTOC.- Por virtud del contrato de arrendamiento financiero, el arrendador se obliga a adquirir determinados bienes y a conceder su uso o goce temporal, a plazo forzoso, al arrendatario, quien podrá ser persona física o moral, obligándose este último a pagar como contraprestación, que se liquidará en pagos parciales, según se convenga, una cantidad en dinero determinada o determinable, que cubra el valor de adquisición de los bienes, las cargas financieras y los demás accesorios que se estipulen, y adoptar al vencimiento del contrato alguna de las opciones terminales a que se refiere el artículo 410 de esta Ley. Los contratos de arrendamiento financiero deberán otorgarse por escrito y deberán inscribirse en la Sección Única del Registro Único de Garantías Mobiliarias del Registro Público de Comercio, en el folio electrónico del arrendador y del arrendatario, a fin de que surta efectos contra tercero, sin perjuicio de hacerlo en otros registros especiales que las leyes determinen. En los contratos de arrendamiento financiero en los que se convenga la entrega de anticipos, por parte del arrendador, a los proveedores, fabricantes o constructores de los bienes objeto de dichos contratos que, por su naturaleza, ubicación o proceso de producción, no sean entregados en el momento en que se pague su precio o parte del mismo, el arrendatario quedará obligado a pagar al arrendador una cantidad de dinero, determinada o determinable, que cubrirá únicamente el valor de las cargas financieras y demás accesorios de los anticipos hasta en tanto se entregue el bien de que se trate, condición que deberá estar contenida en el contrato de arrendamiento financiero. En el supuesto señalado en el párrafo anterior, las partes deberán convenir el plazo durante el cual se entregarán los anticipos, después del cual el arrendatario deberá cubrirlos en el arrendamiento financiero con las características y condiciones pactadas en el contrato correspondiente.
B8: Artículo 410 LGTOC.- Al concluir el plazo del vencimiento del contrato o cuando las partes acuerden su vencimiento anticipado y una vez que se hayan cumplido todas las obligaciones, el arrendatario deberá adoptar alguna de las siguientes opciones terminales: I. La compra de los bienes a un precio inferior a su valor de adquisición, que quedará fijado en el contrato. En caso de que no se haya fijado, el precio debe ser inferior al valor de mercado a la fecha de compra, conforme a las bases que se establezcan en el contrato; II. A prorrogar el plazo para continuar con el uso o goce temporal, pagando una renta inferior a los pagos periódicos que venía haciendo, conforme a las bases que se establezcan en el contrato; y III. A participar con el arrendador en el precio de la venta de los bienes a un tercero, en las proporciones y términos que se convengan en el contrato. Cuando en el contrato se convenga la obligación del arrendatario de adoptar, de antemano, alguna de las opciones antes señaladas, éste será responsable de los daños y perjuicios en caso de incumplimiento. El arrendador no podrá oponerse al ejercicio de dicha opción. Si en los términos del contrato, queda el arrendatario facultado para adoptar la opción terminal al finalizar el plazo obligatorio, éste deberá notificar por escrito al arrendador, por lo menos con un mes de anticipación al vencimiento del contrato, cuál de ellas va a adoptar, respondiendo de los daños y perjuicios en caso de omisión, con independencia de lo que se convenga en el contrato.
B9: Tratándose de contratos de arrendamiento financiero, el arrendatario considerará como monto original de la inversión, la cantidad que se hubiere pactado como valor del bien en el contrato respectivo. Fundamento: Artículo 38 primer párrafo LISR
B11: Fecha de inicio | C11: 2021-08-01
B12: Fecha final del contrato | C12: 2024-08-01
B13: Tipo de bien | C13: Automóvil
B14: Valor del bien | C14: 650000
B15: Años del contrato | C15: =IFERROR(DATEDIF(C11,C12,"y"),"") -> 3
B16: Meses del contrato | C16: =IFERROR(DATEDIF(C11,C12,"m"),"") -> 36
B17: % de depreciación del bien | C17: 0.25
B18: Años a depreciar fiscalmente | C18: =IFERROR(100%/C17,"") -> 4
B20: Años a depreciar | C20: Meses a depreciar | D20: % de depreciación | E20: MOI | F20: Depreciación anual | G20: Meses del ejercicio | H20: Depreciación mensual | I20: Depreciación efectuada
B21: =IF(ROW(A1)<=$C$18,ROW(A1),"") -> 1 | C21: =IF(B21<>"",DATEDIF(C11,DATE(YEAR(C11),12,31),"m")+IF(DAY(C11)=DAY(C12),1,0),"") -> 5 | D21: =IFERROR(IF(B21<>"",$C$17,""),"") -> 0.25 | E21: =IF(B21<>"",$C$14,"") -> 650000 | F21: =IFERROR(ROUND(E21*D21,2),"") -> 162500 | G21: =IF(B21<>"",12,"") -> 12 | H21: =IFERROR(ROUND(F21/G21*C21,2),"") -> 67708.33 | I21: =IFERROR(IF(B21<>"",SUM($H$21:H21),""),"") -> 67708.33
B22: =IF(ROW(A2)<=$C$18,ROW(A2),"") -> 2 | C22: =IFERROR(IF(AND(B22<>"",B23<>""),DATEDIF(DATE(YEAR($C$11)+B21,1,1),DATE(YEAR($C$11)+B21,12,31),"m")+1,IF(B22<>"",DATEDIF(DATE(YEAR($C$12),1,1),$C$12,"m"),"")),"") -> 12 | D22: =IFERROR(IF(B22<>"",$C$17,""),"") -> 0.25 | E22: =IF(B22<>"",$C$14,"") -> 650000 | F22: =IFERROR(ROUND(E22*D22,2),"") -> 162500 | G22: =IF(B22<>"",12,"") -> 12 | H22: =IFERROR(ROUND(F22/G22*C22,2),"") -> 162500 | I22: =IFERROR(IF(B22<>"",SUM($H$21:H22),""),"") -> 230208.33
B23: =IF(ROW(A3)<=$C$18,ROW(A3),"") -> 3 | C23: =IFERROR(IF(AND(B23<>"",B24<>""),DATEDIF(DATE(YEAR($C$11)+B22,1,1),DATE(YEAR($C$11)+B22,12,31),"m")+1,IF(B23<>"",DATEDIF(DATE(YEAR($C$12),1,1),$C$12,"m"),"")),"") -> 12 | D23: 0.25 | E23: 650000 | F23: 162500 | G23: 12 | H23: 162500 | I23: =IFERROR(IF(B23<>"",SUM($H$21:H23),""),"") -> 392708.33
B24: =IF(ROW(A4)<=$C$18,ROW(A4),"") -> 4 | C24: 7 | D24: 0.25 | E24: 650000 | F24: 162500 | G24: 12 | H24: 94791.67 | I24: =IFERROR(IF(B24<>"",SUM($H$21:H24),""),"") -> 487500
B25: =IF(ROW(A5)<=$C$18,ROW(A5),"") ->  | I25: =IFERROR(IF(B25<>"",SUM($H$21:H25),""),"") -> 
B26: =IF(ROW(A7)<=$C$18,ROW(A7),"") ->  | I26: =IFERROR(IF(B26<>"",SUM($H$21:H26),""),"") -> 
B27: =IF(ROW(A9)<=$C$18,ROW(A9),"") ->  | I27: =IFERROR(IF(B27<>"",SUM($H$21:H27),""),"") -> 
B28: =IF(ROW(A10)<=$C$18,ROW(A10),"") ->  | I28: =IFERROR(IF(B28<>"",SUM($H$21:H28),""),"") -> 
B29: =IF(ROW(A11)<=$C$18,ROW(A11),"") ->  | I29: =IFERROR(IF(B29<>"",SUM($H$21:H29),""),"") -> 
B30: =IF(ROW(A12)<=$C$18,ROW(A12),"") ->  | C30: =IFERROR(IF(AND(B30<>"",B32<>""),DATEDIF(DATE(YEAR($C$11)+B29,1,1),DATE(YEAR($C$11)+B29,12,31),"m")+1,IF(B30<>"",DATEDIF(DATE(YEAR($C$12),1,1),$C$12,"m"),"")),"") ->  | I30: =IFERROR(IF(B30<>"",SUM($H$21:H30),""),"") -> 
B33: Cuando en los contratos de arrendamiento financiero se haga uso de alguna de sus opciones, para la deducción de las inversiones relacionadas con dichos contratos se observará lo siguiente: I. Si se opta por transferir la propiedad del bien objeto del contrato mediante el pago de una cantidad determinada, o bien, por prorrogar el contrato por un plazo cierto, el importe de la opción se considerará complemento del monto original de la inversión, por lo que se deducirá en el por ciento que resulte de dividir el importe de la opción entre el número de años que falten para terminar de deducir el monto original de la inversión. Fundamento: Artìculo 38 segundo pàrrafo LISR
B35: Adquisición a precio reducido o prorroga del contrato
B37: Fecha de la opciòn | C37: =C12+1 -> 2024-08-02
B38: Importe | C38: 250000
B40: Complemento MOI | C40: =C38 -> 250000
B41: Años pendientes | C41: =IFERROR(((C18*12)-C16)/12,"") -> 1
B42: Meses pendientes | C42: =IFERROR((C18*12)-C16,"") -> 12
B44: Determinación del % de depreciación
B45: Complemento MOI | C45: =C40 -> 250000
B46: (/) Meses pendientes | C46: =C42 -> 12
B47: (=) Depreciación mensual | C47: =IFERROR(ROUND(C45/C46,2),"") -> 20833.33
B49: Depreciación mensual | C49: =C47 -> 20833.33
B50: (/) Complemento MOI | C50: =C45 -> 250000
B51: (=) % de depreciación mensual | C51: =IFERROR(ROUND(C49/C50,4),"") -> 0.0833
B54: II. Si se obtiene participación por la enajenación de los bienes a terceros, deberá considerarse como deducible la diferencia entre los pagos efectuados y las cantidades ya deducidas, menos el ingreso obtenido por la participación en la enajenación a terceros. Fundamento: Artìculo 38 segundo pàrrafo LISR
B56: Venta a un tercero
B57: Importe de la participación | C57: 180000
B59: Pagos efectuados x el contrato | C59: =C14 -> 650000
B60: (-) Depreciación realizada | C60: =IFERROR(SUMIF(H21:H30,">0"),"") -> 487500
B61: (=) Resultado I | C61: =IFERROR(C59-C60,"") -> 162500
B63: Ingreso obtenido | C63: =C57 -> 180000
B64: (-) Resultado I | C64: =C61 -> 162500
B65: (=) Importe deducible | C65: =IFERROR(IF(C63>=C64,C63-C64,0),"") -> 17500

Sheet VENTAAF (hidden)
B3: Determinación de la ganancia o pérdida en venta de activo fijo
B5: Cuando el contribuyente enajene los bienes o cuando éstos dejen de ser útiles para obtener los ingresos, deducirá, en el ejercicio en que esto ocurra, la parte aún no deducida. Lo anterior no es aplicable a los casos señalados en los párrafos penúltimo y último de este artículo. En el caso en que los bienes dejen de ser útiles para obtener los ingresos, el contribuyente deberá mantener sin deducción un peso en sus registros y presentar aviso ante las autoridades fiscales. Fundamento: Artículo 31 sexto párrafo LISR
B7: Determinación del saldo pendiente por deducir
B8: Monto original de la inversión
B9: (-) Depreciación acumulada a la fecha de venta
B10: (=) Saldo pendiente por deducir | C10: =IFERROR(IF(C8>=C9,ROUND(C8-C9,2),0),"") -> 0 | D10: ①
B12: Los contribuyentes ajustarán la deducción determinada en los términos de los párrafos primero y sexto de este artículo, multiplicándola por el factor de actualización correspondiente al periodo comprendido desde el mes en el que se adquirió el bien y hasta el último mes de la primera mitad del periodo en el que el bien haya sido utilizado durante el ejercicio por el que se efectúe la deducción. Fundamento: Artículo 31 séptimo párrafo LISR Cuando sea impar el número de meses comprendidos en el periodo en el que el bien haya sido utilizado en el ejercicio, se considerará como último mes de la primera mitad de dicho periodo el mes inmediato anterior al que corresponda la mitad del periodo. Fundamento: Artículo 31 octavo párrafo LISR
B14: Fecha de adquisición
B15: Fecha de venta | E15: Último mes de la 1a. Mitad
B16: Último mes de la 1a. mitad de utilización | C16: =IFERROR(IF(YEAR(C14)<YEAR(C15),PROPER(TEXT(DATE(YEAR(C15),DATEDIF(DATE(YEAR(C15),1,1),EOMONTH(C15,1),"M")/2,1),"MMMM")),PROPER(TEXT(DATE(YEAR(C14),MONTH(C15)-(ROUND(DATEDIF(C14,EOMONTH(C15,1),"M")-(DATEDIF(C14,EOMONTH(C15,1),"M")/2),0)),1),"MMMM"))),"") ->  | E16: Adquirido en ejercicios anteriores | F16: Adquirido en el ejercicio
E17: Enero | F17: Enero
B18: Determinación del factor de actualización | E18: Febrero | F18: Febrero
B19: ="INPC de "&C16&" "&IF(C16="Diciembre",YEAR(C15)-1,YEAR(C15)) -> INPC de 1900 | C19: =IFERROR(INDEX(TINPC,MATCH(IF(C16="Diciembre",YEAR(C15)-1,YEAR(C15)),INPCA,0),MATCH(C16,INPCM,0)),"") ->  | E19: Marzo | F19: Marzo
B20: ="(/) INPC de "&TEXT(C14,"mmmm")&" "&YEAR(C14) -> (/) INPC de enero 1900 | C20: =IFERROR(INDEX(TINPC,MATCH(YEAR(C14),INPCA,0),MATCH(TEXT(C14,"MMMM"),INPCM,0)),"") ->  | E20: Abril | F20: Abril
B21: (=) Factor de actualización | C21: =IFERROR(ROUND(C19/C20,4),"") ->  | D21: ② | E21: Mayo | F21: Mayo
E22: Junio | F22: Junio
B23: Cuando de conformidad con las disposiciones fiscales se deban realizar operaciones aritméticas, con el fin de determinar factores o proporciones, las mismas deberán calcularse hasta el diezmilésimo. Fundamento: Artículo 17-A último párrafo CFF | E23: Julio | F23: Julio
E24: Agosto | F24: Agosto
E25: Septiembre | F25: Septiembre
E26: Octubre | F26: Octubre
E27: Noviembre | F27: Noviembre
E28: Diciembre | F28: Diciembre
B29: Actualización del saldo pendiente por deducir
B30: Saldo pendiente por deducir | C30: =C10 -> 0 | D30: ①
B31: (x) Factor de actualización | C31: =IFERROR(C21,"") ->  | D31: ②
B32: (=) Saldo pendiente por deducir | C32: =IFERROR(ROUND(C30*C31,2),"") ->  | D32: ③
B34: Artículo 31 LISR. Noveno párrafo Para determinar la ganancia por la enajenación de bienes cuya inversión es parcialmente deducible en los términos de las fracciones II y III del artículo 36 de esta Ley, se considerará la diferencia entre el monto original de la inversión deducible disminuido por las deducciones efectuadas sobre dicho monto y el precio en que se enajenen los bienes. Décimo párrafo Tratándose de bienes cuya inversión no es deducible en los términos de las fracciones II, III y IV del artículo 36 de esta Ley, se considerará como ganancia el precio obtenido por su enajenación.
B36: Determinación de la ganancia o pérdida en venta de activo fijo
B38: Precio de venta
B39: (-) Saldo pendiente por deducir actualizado | C39: =IFERROR(C32,"") ->  | D39: ③
B40: =IF(C38>=C39,"(=) Ganancia en venta de activo fijo","(=) Pérdida en venta de activo fijo") -> (=) Ganancia en venta de activo fijo | C40: =IFERROR(IF(C38>=C39,C38-C39,C39-C38),"") -> 

Sheet TASAD (hidden)
B5: Tasas de depreciación persona moral régimen general de Ley y persona física actividad empresarial y profesional | D5: Régimen simplificado de confianza persona moral
B6: Artículo 33 LISR. Los por cientos máximos autorizados tratándose de gastos y cargos diferidos, así como para las erogaciones realizadas en periodos preoperativos, son los siguientes: | D6: Artículo 209 LISR Los contribuyentes a que se refiere este Capítulo determinarán la deducción por inversiones conforme a lo dispuesto en la Sección II, del Capítulo II del Título II de esta Ley, aplicando los porcientos máximos autorizados en este artículo en lugar de los señalados en la Sección II del Capítulo II del Título II de esta Ley, siempre que el monto total de las inversiones en el ejercicio no hubiera excedido de tres millones de pesos. Cuando el monto de las inversiones en el ejercicio exceda de la cantidad señalada, se deberán aplicar los porcientos máximos establecidos en la Sección II, del Capítulo II, del Título II de esta Ley. Para estos efectos, se consideran inversiones las señaladas en el artículo 32 de esta Ley.
B7: 5% para cargos diferidos. | D7: A. Tratándose de gastos y cargos diferidos, así como para las erogaciones realizadas en periodos preoperativos, son los siguientes:
B8: 10% para erogaciones realizadas en periodos preoperativos. | D8: 5% para cargos diferidos.
B9: 15% para regalías, para asistencia técnica, así como para otros gastos diferidos, a excepción de los señalados en la fracción IV del presente artículo. | D9: 10% para erogaciones realizadas en periodos preoperativos.
B10: En el caso de activos intangibles que permitan la explotación de bienes del dominio público o la prestación de un servicio público concesionado, el por ciento máximo se calculará dividiendo la unidad entre el número de años por los cuales se otorgó la concesión, el cociente así obtenido se multiplicará por cien y el producto se expresará en por ciento. | D10: 15% para regalías, para asistencia técnica, así como para otros gastos diferidos, a excepción de los señalados en la fracción IV del presente artículo.
B11: Artículo 34 LISR. Los por cientos máximos autorizados, tratándose de activos fijos por tipo de bien son los siguientes: | D11: En el caso de activos intangibles que permitan la explotación de bienes del dominio público o la prestación de un servicio público concesionado, el por ciento máximo se calculará dividiendo la unidad entre el número de años por los cuales se otorgó la concesión, el cociente así obtenido se multiplicará por cien y el producto se expresará en por ciento.
B12: Tratándose de construcciones: | D12: B. Tratándose de activos fijos por tipo de bien son los siguientes:
B13: 10% para inmuebles declarados como monumentos arqueológicos, artísticos, históricos o patrimoniales, conforme a la Ley Federal sobre Monumentos y Zonas Arqueológicos, Artísticos e Históricos, que cuenten con el certificado de restauración expedido por el Instituto Nacional de Antropología e Historia o el Instituto Nacional de Bellas Artes. | D13: Tratándose de construcciones:
B14: 5% en los demás casos, incluyendo las instalaciones, adiciones, reparaciones, mejoras, adaptaciones, así como cualquier otra construcción que se realice en un lote minero de conformidad con el artículo 12 de la Ley Minera. | D14: 20% para inmuebles declarados como monumentos arqueológicos, artísticos, históricos o patrimoniales, conforme a la Ley Federal sobre Monumentos y Zonas Arqueológicos, Artísticos e Históricos, que cuenten con el certificado de restauración expedido por el Instituto Nacional de Antropología e Historia o el Instituto Nacional de Bellas Artes.
B15: Tratándose de ferrocarriles: | D15: 13% en los demás casos.
B16: 3% para bombas de suministro de combustible a trenes. | D16: Tratándose de ferrocarriles:
B17: 5% para vías férreas. | D17: 10% para bombas de suministro de combustible a trenes.
B18: 6% para carros de ferrocarril, locomotoras, armones y autoarmones. | D18: 10% para vías férreas.
B19: 7% para maquinaria niveladora de vías, desclavadoras, esmeriles para vías, gatos de motor para levantar la vía, removedora, insertadora y taladradora de durmientes. | D19: 10% para carros de ferrocarril, locomotoras, armones y autoarmones.
B20: 10% para el equipo de comunicación, señalización y telemando. | D20: 20% para maquinaria niveladora de vías, desclavadoras, esmeriles para vías, gatos de motor para levantar la vía, removedora, insertadora y taladradora de durmientes.
B21: 10% para mobiliario y equipo de oficina. | D21: 20% para el equipo de comunicación, señalización y telemando.
B22: 6% para embarcaciones. | D22: 25% para mobiliario y equipo de oficina.
B23: Tratándose de aviones: | D23: 20% para embarcaciones.
B24: 25% para los dedicados a la aerofumigación agrícola. | D24: Tratándose de aviones:
B25: 10% para los demás. | D25: 25% para los dedicados a la aerofumigación agrícola.
B26: 25% para automóviles, autobuses, camiones de carga, tractocamiones, montacargas y remolques. | D26: 20% para los demás.
B27: 30% para computadoras personales de escritorio y portátiles; servidores; impresoras, lectores ópticos, graficadores, lectores de código de barras, digitalizadores, unidades de almacenamiento externo y concentradores de redes de cómputo. | D27: 25% para automóviles, autobuses, camiones de carga, tractocamiones, montacargas y remolques.
B28: 35% para dados, troqueles, moldes, matrices y herramental. | D28: 50% para computadoras personales de escritorio y portátiles; servidores; impresoras, lectores ópticos, graficadores, lectores de código de barras, digitalizadores, unidades de almacenamiento externo y concentradores de redes de cómputo.
B29: 100% para semovientes y vegetales. | D29: 50% para dados, troqueles, moldes, matrices y herramental.
B30: Tratándose de comunicaciones telefónicas: | D30: 100% para semovientes y vegetales.
B31: 5% para torres de transmisión y cables, excepto los de fibra óptica. | D31: Tratándose de comunicaciones telefónicas:
B32: 8% para sistemas de radio, incluyendo equipo de transmisión y manejo que utiliza el espectro radioeléctrico, tales como el de radiotransmisión de microonda digital o analógica, torres de microondas y guías de onda. | D32: 10% para torres de transmisión y cables, excepto los de fibra óptica.
B33: 10% para equipo utilizado en la transmisión, tales como circuitos de la planta interna que no forman parte de la conmutación y cuyas funciones se enfocan hacia las troncales que llegan a la central telefónica, incluye multiplexores, equipos concentradores y ruteadores. | D33: 20% para sistemas de radio, incluyendo equipo de transmisión y manejo que utiliza el espectro radioeléctrico, tales como el de radiotransmisión de microonda digital o analógica, torres de microondas y guías de onda.
B34: 25% para equipo de la central telefónica destinado a la conmutación de llamadas de tecnología distinta a la electromecánica. | D34: 20% para equipo utilizado en la transmisión, tales como circuitos de la planta interna que no forman parte de la conmutación y cuyas funciones se enfocan hacia las troncales que llegan a la central telefónica, incluye multiplexores, equipos concentradores y ruteadores.
B35: 10% para los demás. | D35: 25% para equipo de la central telefónica destinado a la conmutación de llamadas de tecnología distinta a la electromecánica.
B36: Tratándose de comunicaciones satelitales: | D36: 20% para los demás.
B37: 8% para el segmento satelital en el espacio, incluyendo el cuerpo principal del satélite, los transpondedores, las antenas para la transmisión y recepción de comunicaciones digitales y análogas, y el equipo de monitoreo en el satélite. | D37: Tratándose de comunicaciones satelitales:
B38: 10% para el equipo satelital en tierra, incluyendo las antenas para la transmisión y recepción de comunicaciones digitales y análogas y el equipo para el monitoreo del satélite. | D38: 20% para el segmento satelital en el espacio, incluyendo el cuerpo principal del satélite, los transpondedores, las antenas para la transmisión y recepción de comunicaciones digitales y análogas, y el equipo de monitoreo en el satélite.
B39: 100% para adaptaciones que se realicen a instalaciones que impliquen adiciones o mejoras al activo fijo, siempre que dichas adaptaciones tengan como finalidad facilitar a las personas con discapacidad a que se refiere el artículo 186 de esta Ley, el acceso y uso de las instalaciones del contribuyente. | D39: 20% para el equipo satelital en tierra, incluyendo las antenas para la transmisión y recepción de comunicaciones digitales y análogas y el equipo para el monitoreo del satélite.
B40: 100% para maquinaria y equipo para la generación de energía proveniente de fuentes renovables o de sistemas de cogeneración de electricidad eficiente. | D40: 100% para adaptaciones que se realicen a instalaciones que impliquen adiciones o mejoras al activo fijo, siempre que dichas adaptaciones tengan como finalidad facilitar a las personas con discapacidad a que se refiere el artículo 186 de esta Ley, el acceso y uso de las instalaciones del contribuyente.
B41: 25% para bicicletas convencionales, bicicletas y motocicletas cuya propulsión sea a través de baterías eléctricas recargables. | D41: 100% para maquinaria y equipo para la generación de energía proveniente de fuentes renovables o de sistemas de cogeneración de electricidad eficiente.
B42: 5% para el derecho de usufructo constituido sobre un bien inmueble. | D42: 50% para bicicletas convencionales, bicicletas y motocicletas cuya propulsión sea a través de baterías eléctricas recargables.
B43: Artículo 35 LISR. Para la maquinaria y equipo distintos de los señalados en el artículo anterior, se aplicarán, de acuerdo a la actividad en que sean utilizados, los por cientos siguientes: | D43: C. Para la maquinaria y equipo distintos de los señalados, se aplicarán, de acuerdo a la actividad en que sean utilizados, los porcientos siguientes:
B44: 5% en la generación, conducción, transformación y distribución de electricidad; en la molienda de granos; en la producción de azúcar y sus derivados; en la fabricación de aceites comestibles; en el transporte marítimo, fluvial y lacustre. | D44: 20% en la generación, conducción, transformación y distribución de electricidad; en la molienda de granos; en la producción de azúcar y sus derivados; en la fabricación de aceites comestibles; en el transporte marítimo, fluvial y lacustre.
B45: 6% en la producción de metal obtenido en primer proceso; en la fabricación de productos de tabaco y derivados del carbón natural. | D45: 10% en la producción de metal obtenido en primer proceso; en la fabricación de productos de tabaco y derivados del carbón natural.
B46: 7% en la fabricación de pulpa, papel y productos similares. | D46: 13% en la fabricación de pulpa, papel y productos similares.
B47: 8% en la fabricación de vehículos de motor y sus partes; en la construcción de ferrocarriles y navíos; en la fabricación de productos de metal, de maquinaria y de instrumentos profesionales y científicos; en la elaboración de productos alimenticios y de bebidas, excepto granos, azúcar, aceites comestibles y derivados. | D47: 13% en la fabricación de vehículos de motor y sus partes; en la construcción de ferrocarriles y navíos; en la fabricación de productos de metal, de maquinaria y de instrumentos profesionales y científicos; en la elaboración de productos alimenticios y de bebidas, excepto granos, azúcar, aceites comestibles y derivados.
B48: 9% en el curtido de piel y la fabricación de artículos de piel; en la elaboración de productos químicos, petroquímicos y farmacobiológicos; en la fabricación de productos de caucho y de plástico; en la impresión y publicación gráfica. | D48: 20% en el curtido de piel y la fabricación de artículos de piel; en la elaboración de productos químicos, petroquímicos y farmacobiológicos; en la fabricación de productos de caucho y de plástico; en la impresión y publicación gráfica.
B49: 10% en el transporte eléctrico; en infraestructura fija para el transporte, almacenamiento y procesamiento de hidrocarburos, en plataformas y embarcaciones de perforación de pozos, y embarcaciones de procesamiento y almacenamiento de hidrocarburos. | D49: 20% en el transporte eléctrico; en infraestructura fija para el transporte, almacenamiento y procesamiento de hidrocarburos, en plataformas y embarcaciones de perforación de pozos, y embarcaciones de procesamiento y almacenamiento de hidrocarburos.
B50: 11% en la fabricación, acabado, teñido y estampado de productos textiles, así como de prendas para el vestido. | D50: 25% en la fabricación, acabado, teñido y estampado de productos textiles, así como de prendas para el vestido.
B51: 12% en la industria minera; en la construcción de aeronaves y en el transporte terrestre de carga y pasajeros. Lo dispuesto en esta fracción no será aplicable a la maquinaria y equipo señalada en la fracción II de este artículo. | D51: 25% en la industria minera; en la construcción de aeronaves y en el transporte terrestre de carga y pasajeros. Lo dispuesto en esta fracción no será aplicable a la maquinaria y equipo señalada en la fracción II de este artículo.
B52: 16% en el transporte aéreo; en la transmisión de los servicios de comunicación proporcionados por telégrafos y por las estaciones de radio y televisión. | D52: 25% en el transporte aéreo; en la transmisión de los servicios de comunicación proporcionados por telégrafos y por las estaciones de radio y televisión.
B53: 20% en restaurantes. | D53: 33% en restaurantes.
B54: 25% en la industria de la construcción; en actividades de agricultura, ganadería, silvicultura y pesca. | D54: 25% en la industria de la construcción; en actividades de agricultura, ganadería, silvicultura y pesca.
B55: 35% para los destinados directamente a la investigación de nuevos productos o desarrollo de tecnología en el país. | D55: 35% para los destinados directamente a la investigación de nuevos productos o desarrollo de tecnología en el país.
B56: 50% en la manufactura, ensamble y transformación de componentes magnéticos para discos duros y tarjetas electrónicas para la industria de la computación. | D56: 50% en la manufactura, ensamble y transformación de componentes magnéticos para discos duros y tarjetas electrónicas para la industria de la computación.
B57: 10% en otras actividades no especificadas en este artículo. | D57: 20% en otras actividades no especificadas en este artículo.
B60: Tasas de depreciación persona física enajenación de bienes, adquisición de bienes y arrendamiento de inmuebles
B61: Artículo 149 LISR. Las inversiones cuya deducción autoriza este Título, excepto las reguladas por el Capítulo II Secciones I o II del mismo, únicamente podrán deducirse mediante la aplicación anual sobre el monto de las mismas y hasta llegar a este límite, de los siguientes por cientos:
B62: 5% para construcciones.
B63: 10% para gastos de instalación.
B64: 30% para equipo de cómputo electrónico, consistente en una máquina o grupo de máquinas interconectadas conteniendo unidades de entrada, almacenamiento, computación, control y unidades de salida, usando circuitos electrónicos en los elementos principales para ejecutar operaciones aritméticas o lógicas en forma automática por medio de instrucciones programadas, almacenadas internamente o controladas externamente, así como para el equipo periférico de dicho equipo de cómputo, tal como unidades de discos ópticos, impresoras, lectores ópticos, graficadores, unidades de respaldo, lectores de código de barras, digitalizadores, unidades de almacenamiento externo, así como monitores y teclados conectados a un equipo de cómputo.
B65: 10% para equipo y bienes muebles tangibles, no comprendidas en las fracciones anteriores.
B67: El contribuyente podrá aplicar por cientos menores a los autorizados por esta Ley. En este caso, el por ciento elegido será obligatorio y podrá cambiarse, sin exceder del máximo autorizado. Tratándose del segundo y posteriores cambios deberán transcurrir cuando menos cinco años desde el último cambio; cuando el cambio se quiera realizar antes de que transcurra dicho plazo, se deberá cumplir con los requisitos que establezca el Reglamento de esta Ley. Fundamento: Artículo 31 cuarto párrafo LISR
B68: Artículo 73 RLISR. El por ciento de deducción de inversiones a que se refiere el artículo 31, párrafo cuarto de la Ley podrá cambiarse una sola vez en cada periodo de cinco años para cada bien de que se trate. Cuando no hubieran transcurrido cinco años como mínimo desde el último cambio, podrá cambiarse nuevamente por una sola vez, siempre que se dé alguno de los supuestos establecidos en el artículo 20 de este Reglamento o bien, cuando el contribuyente no haya incurrido en pérdida fiscal en el ejercicio en el cual efectúa el cambio o en cualquiera de los últimos tres anteriores a éste, siempre que el cambio no tenga como efecto que se produzca una pérdida fiscal en el ejercicio de que se trate.
B69: Artículo 20 RLISR. Para efectos del artículo 17, párrafo primero, fracción III, párrafo tercero de la Ley, el contribuyente podrá cambiar la opción a que se refiere dicha fracción por una sola vez, antes de que transcurran cinco años como mínimo desde el último cambio, siempre que se encuentre en cualquiera de los siguientes supuestos: I. Cuando se fusione con otra sociedad; II. Cuando los socios enajenen acciones o partes sociales que representen cuando menos un 25% del capital social del contribuyente; III. La sociedad que obtenga el carácter de integrada en términos del artículo 61 de la Ley, en el ejercicio siguiente a aquél en que la sociedad integradora cuente con la autorización a que se refiere el artículo 63 de la Ley, o bien, cuando se incorpore o desincorpore como sociedad integrada conforme a los artículos 66 y 68 de dicha Ley, y IV. Cuando se escinda la sociedad.

Sheet OTROS (hidden)
B47: Fuente | C47: Rev_TFJA_Mar_2022.pdf

Sheet RETENCION (hidden)
B4: Tipo de retención | C4: Fundamento | G4: Quien retiene
B5: Retención de salarios y asimilados a salarios | C5: Artículo 99 LISR. Quienes hagan pagos por los conceptos a que se refiere este Capítulo, tendrán las siguientes obligaciones: I. Efectuar las retenciones señaladas en el artículo 96 de esta Ley. II. Calcular el impuesto anual de las personas que les hubieren prestado servicios subordinados, en los términos del artículo 97 de esta Ley. | G5: Persona física y/o moral con trabajadores o asimilados a salarios
B8: Régimen fiscal | C8: Emisor | D8: Actividad | E8: Receptor | F8: Retención | G8: Fundamento
B9: 612 | C9: Persona física actividad empresarial | D9: Comisión | E9: Persona moral régimen general de Ley y RESICO | F9: IVA | G9: Artículo 1-A fración II inciso d) LIVA
D10: Fletes | F10: IVA | G10: Artículo 1-A fración II inciso c) LIVA
C11: Persona física servicios profesionales | D11: Honorarios | F11: ISR e IVA | G11: Artículo 106 quinto párrafo LISR y 1-A fracción II inciso a) LIVA
B12: 606 | C12: Persona física arrendamiento de inmuebles | D12: Arrendamiento | F12: ISR e IVA | G12: Artículo 116 quinto párrafo LISR y 1-A fracción II inciso a) LIVA
B13: 626 | C13: Persona física actividad empresarial | D13: Ventas | E13: Persona moral régimen general de Ley y RESICO | F13: ISR e IVA | G13: Artículo 113-J quinto párrafo LISR y 1-A fracción II inciso a) LIVA
C14: Persona física servicios profesionales | D14: Honorarios
C15: Persona física arrendamiento de inmuebles | D15: Arrendamiento
B17: Obligación de emitir constancia de retención por parte de las personas morales
B19: En que caso | D19: Obligación de emitir constancia | F19: No obligado a emitir constancia de retención
B20: Se reciben servicios profesionales de una persona física | D20: Articulo 106 quinto párrafo LISR, 1-A fracción II inciso a) LIVA | F20: Artículo 106 sexto párrafo LISR, 32 fracción V segundo párrafo LIVA
B21: Uso o goce de bienes inmuebles recibidos de una persona física | D21: Articulo 116 quinto párrafo LISR, 1-A fracción II inciso a) LIVA | F21: Artículo 116 sexto párrafo LISR, 32 fracción V segundo párrafo LIVA
B22: Adquisición, prestación de servicios o el uso o goce temporal de bienes, de un RESICO persona física | D22: Artículo 113-J LISR, en su caso artículo 1-A fraccción II LIVA | F22: Regla 3.13.27 RMF 2024, 32 fracción V segundo párrafo LIVA
B23: Adquisicion de desperdicios adquiridos a una persona física | D23: Artículo 1-A LIVA, regla 2.7.3.5 RMF 2024
B24: Servicios de comisión prestados por personas físicas | D24: Artículo 1-A fracción II inciso c) LIVA
B25: Servicios de autotransporte de bienes | D25: Artículo 1-A fracción II inciso d) LIVA | F25: Regla 2.7.1.11 RMF 2024
B26: Pago de dividendos cuando se retiene el 10% | D26: Artículo 140 segundo párrafo LISR
B27: Retención de salarios y asimilados a salarios | D27: Artículo 96 LISR | F27: Artículo 99 fracción III LISR
B31: Obligación | G31: Fundamento
B32: En el caso de prestación de servicios profesionales de una persona física a una moral ésta última debe de retener el 10% sobre el monto de la contraprestación pagada. | G32: Artículo 106 quinto párrafo LISR.
B33: En el caso de una venta, prestación de servicios o del uso o goce temporal de bienes de una persona física RESICO a una persona moral ésta última debe de retener el 1.25% del valor de la contraprestación efectivamente pagada. | G33: Artículo 113-J LISR.
B34: En el arrendamiento de inmuebles de una persona física a una persona moral ésta última debe de retener el 10% del valor de la contraprestación pagada. | G34: Artículo 116 quinto párrafo LISR.
B35: Cuando la persona moral pague dividendos de utilidades provenientes del ejercicio 2014 y posteriores debe de realizar la retención de un 10% como pago definitivo al momento del pago. | G35: Artículo 140 primer párrafo LISR.
B36: Cunado la persona moral realice pagos de salarios y asimilados a salarios debe de realizar la retención de acuerdo al artículo 96 de la LISR. | G36: Artículo 99 fracción I LISR.

Sheet NOMINA (hidden)
AD1: =IF(AND(AA6>=2,AA6<=4,AE6>=1,AE6<=8),0,1) -> 1
AZ4: Vanta acciones | BB4: Tiempo extra | BF4: Jubilaciones, pensiones, retiro | BK4: Pagos por separación | BP4: Incapacidades
B5: Fecha de emisión | C5: Fecha de timbrado | D5: UUID | E5: Concepto | F5: Serie | G5: Folio | H5: Forma de pago | I5: Metodo de pago | J5: Moneda | K5: Registro patronal | L5: Nombre del patron | M5: Riesgo de puesto | N5: Concepto riesgo de puesto (este dato no pertenece al XML) | O5: No. De empleado | P5: Nombre del empleado | Q5: Departamento | R5: Puesto | S5: Clave de la entidad federrativa | T5: Estado (este dato no pertenece al XML) | U5: CURP | V5: RFC | W5: No. SS | X5: Fecha inicio relación laboral | Y5: Salario diario integrado | Z5: Salario base de cotización | AA5: Tipo de regimen | AB5: Tipo de régimen (este dato no pertenece al XML) | AC5: Tipo de jornada | AD5: Tipo de jornada (este dato no pertenece al XML) | AE5: Tipo de contrato | AF5: Tipo de contrato (este dato no pertenece al XML) | AG5: Antigüedad | AH5: Fecha inicial pago | AI5: Fecha final pago | AJ5: Fecha de pago | AK5: Periodicidad de pago | AL5: Periodicidad de pago (este dato no pertenece al XML) | AM5: Clave de percepción | AN5: Percepción | AO5: Percepción de acuerdo al catálogo del SAT (este dato no pertenece al XML) | AP5: Percepción exenta | AQ5: Percepción gravado | AR5: Clave de deducción | AS5: Deducción | AT5: Deducción de acuerdo al catálogo del SAT (este dato no pertenece al XML) | AU5: Importe deducción | AV5: Total del comprobante | AW5: Tipo de relación | AX5: UUID tipo de relación | AY5: Subsidio al empleo causado | AZ5: Valor de mercado | BA5: Precio al otorgarse | BB5: Días | BC5: Tipo de horas | BD5: Horas extras | BE5: Importe pagado | BF5: Total en una sola exhibición | BG5: Total parcialidad | BH5: Monto diario | BI5: Ingreso acumulable | BJ5: Ingreso no acumulable | BK5: Total pagado | BL5: No. de años de servicio | BM5: Último sueldo mensual ordinario | BN5: Ingreso acumulable | BO5: Ingreso no acumulable | BP5: Días de incapacidad | BQ5: Tipo de incapacidad | BR5: Importe monetario | BS5: Dìas pagados | BT5: Ruta

Sheet CONCENTRADO (hidden)
C4: Fecha inicial de pago
C5: Fecha final de pago
B7: Catálogo de percepciones | D7: Régimen 02 | F7: Régimen 03, 04 y 12 | H7: Régimen 13 | J7: Régimen 05, 06, 07, 08, 09, 10, 11
B8: c_TipoPercepcion | C8: Descripción | D8: Gravado | E8: Exento | F8: Gravado | G8: Exento | H8: Gravado | I8: Exento | J8: Gravado | K8: Exento
B9: 1 | C9: Sueldos, Salarios Rayas y Jornales
B10: 2 | C10: Gratificación Anual (Aguinaldo)
B11: 3 | C11: Participación de los Trabajadores en las Utilidades PTU
B12: 4 | C12: Reembolso de Gastos Médicos Dentales y Hospitalarios
B13: 5 | C13: Fondo de Ahorro
B14: 6 | C14: Caja de ahorro
B15: 9 | C15: Contribuciones a Cargo del Trabajador Pagadas por el Patrón
B16: 10 | C16: Premios por puntualidad
B17: 11 | C17: Prima de Seguro de vida
B18: 12 | C18: Seguro de Gastos Médicos Mayores
B19: 13 | C19: Cuotas Sindicales Pagadas por el Patrón
B20: 14 | C20: Subsidios por incapacidad
B21: 15 | C21: Becas para trabajadores y/o hijos
B22: 19 | C22: Horas extra
B23: 20 | C23: Prima dominical
B24: 21 | C24: Prima vacacional
B25: 22 | C25: Prima por antigüedad
B26: 23 | C26: Pagos por separación
B27: 24 | C27: Seguro de retiro
B28: 25 | C28: Indemnizaciones
B29: 26 | C29: Reembolso por funeral
B30: 27 | C30: Cuotas de seguridad social pagadas por el patrón
B31: 28 | C31: Comisiones
B32: 29 | C32: Vales de despensa
B33: 30 | C33: Vales de restaurante
B34: 31 | C34: Vales de gasolina
B35: 32 | C35: Vales de ropa
B36: 33 | C36: Ayuda para renta
B37: 34 | C37: Ayuda para artículos escolares
B38: 35 | C38: Ayuda para anteojos
B39: 36 | C39: Ayuda para transporte
B40: 37 | C40: Ayuda para gastos de funeral
B41: 38 | C41: Otros ingresos por salarios
B42: 39 | C42: Jubilaciones, pensiones o haberes de retiro
B43: 44 | C43: Jubilaciones, pensiones o haberes de retiro en parcialidades
B44: 45 | C44: Ingresos en acciones o títulos valor que representan bienes
B45: 046 | C45: Ingresos asimilados a salarios
B46: 047 | C46: Alimentación diferentes a los establecidos en el Art 94 último párrafo LISR
B47: 48 | C47: Habitación
B48: 49 | C48: Premios por asistencia
B49: 50 | C49: Viáticos
B50: 51 | C50: Pagos por gratificaciones, primas, compensaciones, recompensas u otros a extrabajadores derivados de jubilación en parcialidades
B51: 52 | C51: Pagos que se realicen a extrabajadores que obtengan una jubilación en parcialidades derivados de la ejecución de resoluciones judicial o de un laudo
B52: 53 | C52: Pagos que se realicen a extrabajadores que obtengan una jubilación en una sola exhibición derivados de la ejecución de resoluciones judicial o de un laudo
C53: Totales
B55: Catálogo de deducciones
B56: c_TipoDeduccion | C56: Descripción | D56: Régimen 02 | E56: Régimen 03, 04 y 12 | F56: Régimen 13 | G56: Régimen 05, 06, 07, 08, 09, 10, 11
B57: 1 | C57: Seguridad social
B58: 2 | C58: ISR
B59: 3 | C59: Aportaciones a retiro, cesantía en edad avanzada y vejez.
B60: 4 | C60: Otros
B61: 5 | C61: Aportaciones a Fondo de vivienda
B62: 6 | C62: Descuento por incapacidad
B63: 7 | C63: Pensión alimenticia
B64: 8 | C64: Renta
B65: 9 | C65: Préstamos provenientes del Fondo Nacional de la Vivienda para los Trabajadores
B66: 10 | C66: Pago por crédito de vivienda
B67: 11 | C67: Pago de abonos INFONACOT
B68: 12 | C68: Anticipo de salarios
B69: 13 | C69: Pagos hechos con exceso al trabajador
B70: 14 | C70: Errores
B71: 15 | C71: Pérdidas
B72: 16 | C72: Averías
B73: 17 | C73: Adquisición de artículos producidos por la empresa o establecimiento
B74: 18 | C74: Cuotas para la constitución y fomento de sociedades cooperativas y de cajas de ahorro
B75: 19 | C75: Cuotas sindicales
B76: 20 | C76: Ausencia (Ausentismo)
B77: 21 | C77: Cuotas obrero patronales
B78: 22 | C78: Impuestos Locales
B79: 23 | C79: Aportaciones voluntarias
B80: 24 | C80: Ajuste en Gratificación Anual (Aguinaldo) Exento
B81: 25 | C81: Ajuste en Gratificación Anual (Aguinaldo) Gravado
B82: 26 | C82: Ajuste en Participación de los Trabajadores en las Utilidades PTU Exento
B83: 27 | C83: Ajuste en Participación de los Trabajadores en las Utilidades PTU Gravado
B84: 28 | C84: Ajuste en Reembolso de Gastos Médicos Dentales y Hospitalarios Exento
B85: 29 | C85: Ajuste en Fondo de ahorro Exento
B86: 30 | C86: Ajuste en Caja de ahorro Exento
B87: 31 | C87: Ajuste en Contribuciones a Cargo del Trabajador Pagadas por el Patrón Exento
B88: 32 | C88: Ajuste en Premios por puntualidad Gravado
B89: 33 | C89: Ajuste en Prima de Seguro de vida Exento
B90: 34 | C90: Ajuste en Seguro de Gastos Médicos Mayores Exento
B91: 35 | C91: Ajuste en Cuotas Sindicales Pagadas por el Patrón Exento
B92: 36 | C92: Ajuste en Subsidios por incapacidad Exento
B93: 37 | C93: Ajuste en Becas para trabajadores y/o hijos Exento
B94: 38 | C94: Ajuste en Horas extra Exento
B95: 39 | C95: Ajuste en Horas extra Gravado
B96: 40 | C96: Ajuste en Prima dominical Exento
B97: 41 | C97: Ajuste en Prima dominical Gravado
B98: 42 | C98: Ajuste en Prima vacacional Exento
B99: 43 | C99: Ajuste en Prima vacacional Gravado
B100: 44 | C100: Ajuste en Prima por antigüedad Exento
B101: 45 | C101: Ajuste en Prima por antigüedad Gravado
B102: 46 | C102: Ajuste en Pagos por separación Exento
B103: 47 | C103: Ajuste en Pagos por separación Gravado
B104: 48 | C104: Ajuste en Seguro de retiro Exento
B105: 49 | C105: Ajuste en Indemnizaciones Exento
B106: 50 | C106: Ajuste en Indemnizaciones Gravado
B107: 51 | C107: Ajuste en Reembolso por funeral Exento
B108: 52 | C108: Ajuste en Cuotas de seguridad social pagadas por el patrón Exento
B109: 53 | C109: Ajuste en Comisiones Gravado
B110: 54 | C110: Ajuste en Vales de despensa Exento
B111: 55 | C111: Ajuste en Vales de restaurante Exento
B112: 56 | C112: Ajuste en Vales de gasolina Exento
B113: 57 | C113: Ajuste en Vales de ropa Exento
B114: 58 | C114: Ajuste en Ayuda para renta Exento
B115: 59 | C115: Ajuste en Ayuda para artículos escolares Exento
B116: 60 | C116: Ajuste en Ayuda para anteojos Exento
B117: 61 | C117: Ajuste en Ayuda para transporte Exento
B118: 62 | C118: Ajuste en Ayuda para gastos de funeral Exento
B119: 63 | C119: Ajuste en Otros ingresos por salarios Exento
B120: 64 | C120: Ajuste en Otros ingresos por salarios Gravado
B121: 65 | C121: Ajuste en Jubilaciones, pensiones o haberes de retiro en una sola exhibición Exento
B122: 66 | C122: Ajuste en Jubilaciones, pensiones o haberes de retiro en una sola exhibición Gravado
B123: 67 | C123: Ajuste en Pagos por separación Acumulable
B124: 68 | C124: Ajuste en Pagos por separación No acumulable
B125: 69 | C125: Ajuste en Jubilaciones, pensiones o haberes de retiro en parcialidades Exento
B126: 70 | C126: Ajuste en Jubilaciones, pensiones o haberes de retiro en parcialidades Gravado
B127: 71 | C127: Ajuste en Subsidio para el empleo (efectivamente entregado al trabajador)
B128: 72 | C128: Ajuste en Ingresos en acciones o títulos valor que representan bienes Exento
B129: 73 | C129: Ajuste en Ingresos en acciones o títulos valor que representan bienes Gravado
B130: 74 | C130: Ajuste en Alimentación Exento
B131: 75 | C131: Ajuste en Alimentación Gravado
B132: 76 | C132: Ajuste en Habitación Exento
B133: 77 | C133: Ajuste en Habitación Gravado
B134: 78 | C134: Ajuste en Premios por asistencia
B135: 79 | C135: Ajuste en Pagos distintos a los listados y que no deben considerarse como ingreso por sueldos, salarios o ingresos asimilados.
B136: 80 | C136: Ajuste en Viáticos gravados
B137: 81 | C137: Ajuste en Viáticos (entregados al trabajador)
B138: 082 | C138: Ajuste en Fondo de ahorro Gravado
B139: 083 | C139: Ajuste en Caja de ahorro Gravado
B140: 084 | C140: Ajuste en Prima de Seguro de vida Gravado
B141: 085 | C141: Ajuste en Seguro de Gastos Médicos Mayores Gravado
B142: 086 | C142: Ajuste en Subsidios por incapacidad Gravado
B143: 087 | C143: Ajuste en Becas para trabajadores y/o hijos Gravado
B144: 088 | C144: Ajuste en Seguro de retiro Gravado
B145: 089 | C145: Ajuste en Vales de despensa Gravado
B146: 090 | C146: Ajuste en Vales de restaurante Gravado
B147: 091 | C147: Ajuste en Vales de gasolina Gravado
B148: 092 | C148: Ajuste en Vales de ropa Gravado
B149: 093 | C149: Ajuste en Ayuda para renta Gravado
B150: 094 | C150: Ajuste en Ayuda para artículos escolares Gravado
B151: 095 | C151: Ajuste en Ayuda para anteojos Gravado
B152: 096 | C152: Ajuste en Ayuda para transporte Gravado
B153: 097 | C153: Ajuste en Ayuda para gastos de funeral Gravado
B154: 098 | C154: Ajuste a ingresos asimilados a salarios gravados
B155: 099 | C155: Ajuste a ingresos por sueldos y salarios gravados
B156: 100 | C156: Ajuste en Viáticos exentos
B157: 101 | C157: ISR Retenido de ejercicio anterior
B158: 102 | C158: Ajuste a pagos por gratificaciones, primas, compensaciones, recompensas u otros a extrabajadores derivados de jubilación en parcialidades, gravados
B159: 103 | C159: Ajuste a pagos que se realicen a extrabajadores que obtengan una jubilación en parcialidades derivados de la ejecución de una resolución judicial o de un laudo gravados
B160: 104 | C160: Ajuste a pagos que se realicen a extrabajadores que obtengan una jubilación en parcialidades derivados de la ejecución de una resolución judicial o de un laudo exentos
B161: 105 | C161: Ajuste a pagos que se realicen a extrabajadores que obtengan una jubilación en una sola exhibición derivados de la ejecución de una resolución judicial o de un laudo gravados
B162: 106 | C162: Ajuste a pagos que se realicen a extrabajadores que obtengan una jubilación en una sola exhibición derivados de la ejecución de una resolución judicial o de un laudo exentos
B163: 107 | C163: Ajuste al Subsidio Causado
C164: Totales
B166: Catálogo de otros pagos
B167: c_TipoOtroPago | C167: Descripción | D167: Régimen 02 | E167: Régimen 03, 04 y 12 | F167: Régimen 13 | G167: Régimen 05, 06, 07, 08, 09, 10, 11
B168: O001 | C168: Reintegro de ISR pagado en exceso (siempre que no haya sido enterado al SAT).
B169: O002 | C169: Subsidio para el empleo (efectivamente entregado al trabajador).
B170: O003 | C170: Viáticos (entregados al trabajador).
B171: O004 | C171: Aplicación de saldo a favor por compensación anual.
B172: O005 | C172: Reintegro de ISR retenido en exceso de ejercicio anterior (siempre que no haya sido enterado al SAT).
B173: O006 | C173: Alimentos en bienes (Servicios de comedor y comida) Art 94 último párrafo LISR.
B174: O007 | C174: ISR ajustado por subsidio.
B175: O008 | C175: Subsidio efectivamente entregado que no correspondía (Aplica sólo cuando haya ajuste al cierre de mes en relación con el Apéndice 7 de la guía de llenado de nómina).
B176: O009 | C176: Reembolso de descuentos efectuados para el crédito de vivienda.
B177: 999 | C177: Pagos distintos a los listados y que no deben considerarse como ingreso por sueldos, salarios o ingresos asimilados.
C178: Totales

Sheet VISORN (hidden)
C4: Ejercicio
B7: Concepto | G7: Total | H7: Enero | I7: Febrero | J7: Marzo | K7: Abril | L7: Mayo | M7: Junio | N7: Julio | O7: Agosto | P7: Septiembre | Q7: Octubre | R7: Noviembre | S7: Diciembre
C9: Comprobantes emitidos
C11: Pagos totales por sueldos y salarios
C13: Pagos por sueldos salarios
B14: (-) | C14: Total ajustes sueldos y salarios (gravados y exentos)
C16: Pagos totales por sueldos y salarios exentos
C17: Pagos por sueldos salarios exentos
B18: (-) | C18: Total ajustes sueldos y salarios exentos
C20: Pagos por aguinaldo exento
C21: Pagos por aguinaldo exento
B22: (-) | C22: Total ajustes aguinaldo exento
C24: Pagos por prima vacacional exenta
C25: Pagos por prima vacacional exento
B26: (-) | C26: Total ajustes prima vacacional exento
C28: Subsidio para el empleo que le correspondió a los trabajadores
C29: Total del subsidio para el empleo que le correspondió a los trabajadores
B30: (-) | C30: Total de ajustes al subsidio para el empleo que le correspondió a los trabajadores
C32: Subsidio para el empleo pagado en efectivo a los trabajadores
C33: Total del subsidio para el empleo pagado a los trabajadores
B34: (-) | C34: Total ajustes subsidio para el empleo pagado a los trabajadores
C36: ISR retenido
C37: Impuesto sobre la renta retenido
B38: (-) | C38: Total ajustes del impuesto sobre la renta retenido
B39: (+) | C39: Total ISR Retenido de ejercicio anterior
B40: (-) | C40: Total aplicación de saldo a favor por compensación anual
B41: (-) | C41: Total reintegro de ISR retenido en exceso de ejercicio anterior
C43: Resumen pagos de nómina
C44: Pagos de sueldos
C45: Pagos exentos de sueldos
C46: Pagos de asimilados a salarios
C49: Pagos totales por asimilados a salarios
C50: Número de CFDI emitidos
C51: Pagos por asimilados a salarios
B52: (-) | C52: Total ajustes sueldos y salarios (gravados y exentos)
C54: Impuesto retenido asimilados a salarios

Sheet CATALOGO (hidden)
B4: c_RiesgoPuesto | C4: Descripción | D4: Fecha inicio de vigencia | E4: Fecha fin de vigencia | H4: c_TipoPercepcion | I4: Descripción | J4: Fecha inicio de vigencia | K4: Fecha fin de vigencia
B5: 1 | C5: Clase I | D5: 2017-01-01 | H5: 1 | I5: Sueldos, Salarios Rayas y Jornales | J5: 2016-11-01
B6: 2 | C6: Clase II | D6: 2017-01-01 | H6: 2 | I6: Gratificación Anual (Aguinaldo) | J6: 2016-11-01
B7: 3 | C7: Clase III | D7: 2017-01-01 | H7: 3 | I7: Participación de los Trabajadores en las Utilidades PTU | J7: 2016-11-01
B8: 4 | C8: Clase IV | D8: 2017-01-01 | H8: 4 | I8: Reembolso de Gastos Médicos Dentales y Hospitalarios | J8: 2016-11-01
B9: 5 | C9: Clase V | D9: 2017-01-01 | H9: 5 | I9: Fondo de Ahorro | J9: 2016-11-01
B10: 99 | C10: No aplica | D10: 2017-08-13 | H10: 6 | I10: Caja de ahorro | J10: 2016-11-01
H11: 9 | I11: Contribuciones a Cargo del Trabajador Pagadas por el Patrón | J11: 2016-11-01
H12: 10 | I12: Premios por puntualidad | J12: 2016-11-01
B13: c_TipoRegimen | C13: Descripción | D13: Fecha inicio de vigencia | E13: Fecha fin de vigencia | H13: 11 | I13: Prima de Seguro de vida | J13: 2016-11-01
B14: 2 | C14: Sueldos | D14: 2017-01-01 | H14: 12 | I14: Seguro de Gastos Médicos Mayores | J14: 2016-11-01
B15: 3 | C15: Jubilados | D15: 2017-01-01 | H15: 13 | I15: Cuotas Sindicales Pagadas por el Patrón | J15: 2016-11-01
B16: 4 | C16: Pensionados | D16: 2017-01-01 | H16: 14 | I16: Subsidios por incapacidad | J16: 2016-11-01
B17: 5 | C17: Asimilados Miembros Sociedades Cooperativas Produccion | D17: 2017-01-01 | H17: 15 | I17: Becas para trabajadores y/o hijos | J17: 2016-11-01
B18: 6 | C18: Asimilados Integrantes Sociedades Asociaciones Civiles | D18: 2017-01-01 | H18: 19 | I18: Horas extra | J18: 2016-11-01
B19: 7 | C19: Asimilados Miembros consejos | D19: 2017-01-01 | H19: 20 | I19: Prima dominical | J19: 2016-11-01
B20: 8 | C20: Asimilados comisionistas | D20: 2017-01-01 | H20: 21 | I20: Prima vacacional | J20: 2016-11-01
B21: 9 | C21: Asimilados Honorarios | D21: 2017-01-01 | H21: 22 | I21: Prima por antigüedad | J21: 2016-11-01
B22: 10 | C22: Asimilados acciones | D22: 2017-01-01 | H22: 23 | I22: Pagos por separación | J22: 2016-11-01
B23: 11 | C23: Asimilados otros | D23: 2017-01-01 | H23: 24 | I23: Seguro de retiro | J23: 2016-11-01
B24: 12 | C24: Jubilados o Pensionados | D24: 2017-03-27 | H24: 25 | I24: Indemnizaciones | J24: 2016-11-01
B25: 13 | C25: Indemnización o Separación | D25: 2018-10-15 | H25: 26 | I25: Reembolso por funeral | J25: 2016-11-01
B26: 99 | C26: Otro Regimen | D26: 2017-01-01 | H26: 27 | I26: Cuotas de seguridad social pagadas por el patrón | J26: 2016-11-01
H27: 28 | I27: Comisiones | J27: 2016-11-01
H28: 29 | I28: Vales de despensa | J28: 2016-11-01
B29: c_TipoContrato | C29: Descripción | H29: 30 | I29: Vales de restaurante | J29: 2016-11-01
B30: 1 | C30: Contrato de trabajo por tiempo indeterminado | H30: 31 | I30: Vales de gasolina | J30: 2016-11-01
B31: 2 | C31: Contrato de trabajo para obra determinada | H31: 32 | I31: Vales de ropa | J31: 2016-11-01
B32: 3 | C32: Contrato de trabajo por tiempo determinado | H32: 33 | I32: Ayuda para renta | J32: 2016-11-01
B33: 4 | C33: Contrato de trabajo por temporada | H33: 34 | I33: Ayuda para artículos escolares | J33: 2016-11-01
B34: 5 | C34: Contrato de trabajo sujeto a prueba | H34: 35 | I34: Ayuda para anteojos | J34: 2016-11-01
B35: 6 | C35: Contrato de trabajo con capacitación inicial | H35: 36 | I35: Ayuda para transporte | J35: 2016-11-01
B36: 7 | C36: Modalidad de contratación por pago de hora laborada | H36: 37 | I36: Ayuda para gastos de funeral | J36: 2016-11-01
B37: 8 | C37: Modalidad de trabajo por comisión laboral | H37: 38 | I37: Otros ingresos por salarios | J37: 2016-11-01
B38: 9 | C38: Modalidades de contratación donde no existe relación de trabajo | H38: 39 | I38: Jubilaciones, pensiones o haberes de retiro | J38: 2016-11-01
B39: 10 | C39: Jubilación, pensión, retiro. | H39: 44 | I39: Jubilaciones, pensiones o haberes de retiro en parcialidades | J39: 2016-11-01
B40: 99 | C40: Otro contrato | H40: 45 | I40: Ingresos en acciones o títulos valor que representan bienes | J40: 2016-11-01
H41: 046 | I41: Ingresos asimilados a salarios | J41: 2016-11-01
H42: 047 | I42: Alimentación | J42: 2016-11-01
B43: c_PeriodicidadPago | C43: Descripción | D43: Fecha inicio de vigencia | E43: Fecha fin de vigencia | H43: 48 | I43: Habitación | J43: 2016-11-01
B44: 1 | C44: Diario | D44: 2016-11-01 | H44: 49 | I44: Premios por asistencia | J44: 2016-11-01
B45: 2 | C45: Semanal | D45: 2016-11-01 | H45: 50 | I45: Viáticos | J45: 2017-01-06
B46: 3 | C46: Catorcenal | D46: 2016-11-01 | H46: 51 | I46: Pagos por gratificaciones, primas, compensaciones, recompensas u otros a extrabajadores derivados de jubilación en parcialidades | J46: 2018-10-15
B47: 4 | C47: Quincenal | D47: 2016-11-01 | H47: 52 | I47: Pagos que se realicen a extrabajadores que obtengan una jubilación en parcialidades derivados de la ejecución de resoluciones judicial o de un laudo | J47: 2018-10-15
B48: 5 | C48: Mensual | D48: 2016-11-01 | H48: 53 | I48: Pagos que se realicen a extrabajadores que obtengan una jubilación en una sola exhibición derivados de la ejecución de resoluciones judicial o de un laudo | J48: 2018-10-15
B49: 6 | C49: Bimestral | D49: 2016-11-01
B50: 7 | C50: Unidad obra | D50: 2016-11-01
B51: 8 | C51: Comisión | D51: 2016-11-01 | H51: c_TipoOtroPago | I51: Descripción | J51: Fecha inicio de vigencia | K51: Fecha fin de vigencia
B52: 9 | C52: Precio alzado | D52: 2016-11-01 | H52: 1 | I52: Reintegro de ISR pagado en exceso (siempre que no haya sido enterado al SAT). | J52: 2017-01-01
B53: 10 | C53: Decenal | D53: 2017-01-19 | H53: 2 | I53: Subsidio para el empleo (efectivamente entregado al trabajador). | J53: 2017-01-01
B54: 99 | C54: Otra Periodicidad | D54: 2016-11-01 | H54: 3 | I54: Viáticos (entregados al trabajador). | J54: 2017-01-01
H55: 4 | I55: Aplicación de saldo a favor por compensación anual. | J55: 2017-01-01
H56: 5 | I56: Reintegro de ISR retenido en exceso de ejercicio anterior (siempre que no haya sido enterado al SAT). | J56: 2017-12-05
B57: c_TipoIncapacidad | C57: Descripción | H57: 999 | I57: Pagos distintos a los listados y que no deben considerarse como ingreso por sueldos, salarios o ingresos asimilados. | J57: 2017-01-01
B58: 1 | C58: Riesgo de trabajo.
B59: 2 | C59: Enfermedad en general.
B60: 3 | C60: Maternidad. | H60: c_TipoDeduccion | I60: Descripción | J60: Fecha inicio de vigencia | K60: Fecha fin de vigencia
H61: 1 | I61: Seguridad social | J61: 2016-11-01
H62: 2 | I62: ISR | J62: 2016-11-01
B63: c_TipoJornada | C63: Descripción | H63: 3 | I63: Aportaciones a retiro, cesantía en edad avanzada y vejez. | J63: 2016-11-01
B64: 1 | C64: Diurna | H64: 4 | I64: Otros | J64: 2016-11-01
B65: 2 | C65: Nocturna | H65: 5 | I65: Aportaciones a Fondo de vivienda | J65: 2016-11-01
B66: 3 | C66: Mixta | H66: 6 | I66: Descuento por incapacidad | J66: 2016-11-01
B67: 4 | C67: Por hora | H67: 7 | I67: Pensión alimenticia | J67: 2016-11-01
B68: 5 | C68: Reducida | H68: 8 | I68: Renta | J68: 2016-11-01
B69: 6 | C69: Continuada | H69: 9 | I69: Préstamos provenientes del Fondo Nacional de la Vivienda para los Trabajadores | J69: 2016-11-01
B70: 7 | C70: Partida | H70: 10 | I70: Pago por crédito de vivienda | J70: 2016-11-01
B71: 8 | C71: Por turnos | H71: 11 | I71: Pago de abonos INFONACOT | J71: 2016-11-01
B72: 99 | C72: Otra Jornada | H72: 12 | I72: Anticipo de salarios | J72: 2016-11-01
H73: 13 | I73: Pagos hechos con exceso al trabajador | J73: 2016-11-01
H74: 14 | I74: Errores | J74: 2016-11-01
B75: c_Estado | C75: c_Pais | D75: Nombre del estado | H75: 15 | I75: Pérdidas | J75: 2016-11-01
B76: AGU | C76: MEX | D76: Aguascalientes | H76: 16 | I76: Averías | J76: 2016-11-01
B77: BCN | C77: MEX | D77: Baja California | H77: 17 | I77: Adquisición de artículos producidos por la empresa o establecimiento | J77: 2016-11-01
B78: BCS | C78: MEX | D78: Baja California Sur | H78: 18 | I78: Cuotas para la constitución y fomento de sociedades cooperativas y de cajas de ahorro | J78: 2016-11-01
B79: CAM | C79: MEX | D79: Campeche | H79: 19 | I79: Cuotas sindicales | J79: 2016-11-01
B80: CHP | C80: MEX | D80: Chiapas | H80: 20 | I80: Ausencia (Ausentismo) | J80: 2016-11-01
B81: CHH | C81: MEX | D81: Chihuahua | H81: 21 | I81: Cuotas obrero patronales | J81: 2016-11-01
B82: COA | C82: MEX | D82: Coahuila | H82: 22 | I82: Impuestos Locales | J82: 2016-11-01
B83: COL | C83: MEX | D83: Colima | H83: 23 | I83: Aportaciones voluntarias | J83: 2016-11-01
B84: DIF | C84: MEX | D84: Ciudad de México | H84: 24 | I84: Ajuste en Gratificación Anual (Aguinaldo) Exento | J84: 2017-01-06
B85: DUR | C85: MEX | D85: Durango | H85: 25 | I85: Ajuste en Gratificación Anual (Aguinaldo) Gravado | J85: 2017-01-06
B86: GUA | C86: MEX | D86: Guanajuato | H86: 26 | I86: Ajuste en Participación de los Trabajadores en las Utilidades PTU Exento | J86: 2017-01-06
B87: GRO | C87: MEX | D87: Guerrero | H87: 27 | I87: Ajuste en Participación de los Trabajadores en las Utilidades PTU Gravado | J87: 2017-01-06
B88: HID | C88: MEX | D88: Hidalgo | H88: 28 | I88: Ajuste en Reembolso de Gastos Médicos Dentales y Hospitalarios Exento | J88: 2017-01-06
B89: JAL | C89: MEX | D89: Jalisco | H89: 29 | I89: Ajuste en Fondo de ahorro Exento | J89: 2017-01-06
B90: MEX | C90: MEX | D90: Estado de México | H90: 30 | I90: Ajuste en Caja de ahorro Exento | J90: 2017-01-06
B91: MIC | C91: MEX | D91: Michoacán | H91: 31 | I91: Ajuste en Contribuciones a Cargo del Trabajador Pagadas por el Patrón Exento | J91: 2017-01-06
B92: MOR | C92: MEX | D92: Morelos | H92: 32 | I92: Ajuste en Premios por puntualidad Gravado | J92: 2017-01-06
B93: NAY | C93: MEX | D93: Nayarit | H93: 33 | I93: Ajuste en Prima de Seguro de vida Exento | J93: 2017-01-06
B94: NLE | C94: MEX | D94: Nuevo León | H94: 34 | I94: Ajuste en Seguro de Gastos Médicos Mayores Exento | J94: 2017-01-06
B95: OAX | C95: MEX | D95: Oaxaca | H95: 35 | I95: Ajuste en Cuotas Sindicales Pagadas por el Patrón Exento | J95: 2017-01-06
B96: PUE | C96: MEX | D96: Puebla | H96: 36 | I96: Ajuste en Subsidios por incapacidad Exento | J96: 2017-01-06
B97: QUE | C97: MEX | D97: Querétaro | H97: 37 | I97: Ajuste en Becas para trabajadores y/o hijos Exento | J97: 2017-01-06
B98: ROO | C98: MEX | D98: Quintana Roo | H98: 38 | I98: Ajuste en Horas extra Exento | J98: 2017-01-06
B99: SLP | C99: MEX | D99: San Luis Potosí | H99: 39 | I99: Ajuste en Horas extra Gravado | J99: 2017-01-06
B100: SIN | C100: MEX | D100: Sinaloa | H100: 40 | I100: Ajuste en Prima dominical Exento | J100: 2017-01-06
B101: SON | C101: MEX | D101: Sonora | H101: 41 | I101: Ajuste en Prima dominical Gravado | J101: 2017-01-06
B102: TAB | C102: MEX | D102: Tabasco | H102: 42 | I102: Ajuste en Prima vacacional Exento | J102: 2017-01-06
B103: TAM | C103: MEX | D103: Tamaulipas | H103: 43 | I103: Ajuste en Prima vacacional Gravado | J103: 2017-01-06
B104: TLA | C104: MEX | D104: Tlaxcala | H104: 44 | I104: Ajuste en Prima por antigüedad Exento | J104: 2017-01-06
B105: VER | C105: MEX | D105: Veracruz | H105: 45 | I105: Ajuste en Prima por antigüedad Gravado | J105: 2017-01-06
B106: YUC | C106: MEX | D106: Yucatán | H106: 46 | I106: Ajuste en Pagos por separación Exento | J106: 2017-01-06
B107: ZAC | C107: MEX | D107: Zacatecas | H107: 47 | I107: Ajuste en Pagos por separación Gravado | J107: 2017-01-06
B108: AL | C108: USA | D108: Alabama | H108: 48 | I108: Ajuste en Seguro de retiro Exento | J108: 2017-01-06
B109: AK | C109: USA | D109: Alaska | H109: 49 | I109: Ajuste en Indemnizaciones Exento | J109: 2017-01-06
B110: AZ | C110: USA | D110: Arizona | H110: 50 | I110: Ajuste en Indemnizaciones Gravado | J110: 2017-01-06
B111: AR | C111: USA | D111: Arkansas | H111: 51 | I111: Ajuste en Reembolso por funeral Exento | J111: 2017-01-06
B112: CA | C112: USA | D112: California | H112: 52 | I112: Ajuste en Cuotas de seguridad social pagadas por el patrón Exento | J112: 2017-01-06
B113: NC | C113: USA | D113: Carolina del Norte | H113: 53 | I113: Ajuste en Comisiones Gravado | J113: 2017-01-06
B114: SC | C114: USA | D114: Carolina del Sur | H114: 54 | I114: Ajuste en Vales de despensa Exento | J114: 2017-01-06
B115: CO | C115: USA | D115: Colorado | H115: 55 | I115: Ajuste en Vales de restaurante Exento | J115: 2017-01-06
B116: CT | C116: USA | D116: Connecticut | H116: 56 | I116: Ajuste en Vales de gasolina Exento | J116: 2017-01-06
B117: ND | C117: USA | D117: Dakota del Norte | H117: 57 | I117: Ajuste en Vales de ropa Exento | J117: 2017-01-06
B118: SD | C118: USA | D118: Dakota del Sur | H118: 58 | I118: Ajuste en Ayuda para renta Exento | J118: 2017-01-06
B119: DE | C119: USA | D119: Delaware | H119: 59 | I119: Ajuste en Ayuda para artículos escolares Exento | J119: 2017-01-06
B120: FL | C120: USA | D120: Florida | H120: 60 | I120: Ajuste en Ayuda para anteojos Exento | J120: 2017-01-06
B121: GA | C121: USA | D121: Georgia | H121: 61 | I121: Ajuste en Ayuda para transporte Exento | J121: 2017-01-06
B122: HI | C122: USA | D122: Hawái | H122: 62 | I122: Ajuste en Ayuda para gastos de funeral Exento | J122: 2017-01-06
B123: ID | C123: USA | D123: Idaho | H123: 63 | I123: Ajuste en Otros ingresos por salarios Exento | J123: 2017-01-06
B124: IL | C124: USA | D124: Illinois | H124: 64 | I124: Ajuste en Otros ingresos por salarios Gravado | J124: 2017-01-06
B125: IN | C125: USA | D125: Indiana | H125: 65 | I125: Ajuste en Jubilaciones, pensiones o haberes de retiro en una sola exhibición Exento | J125: 2018-10-15
B126: IA | C126: USA | D126: Iowa | H126: 66 | I126: Ajuste en Jubilaciones, pensiones o haberes de retiro en una sola exhibición Gravado | J126: 2018-10-15
B127: KS | C127: USA | D127: Kansas | H127: 67 | I127: Ajuste en Pagos por separación Acumulable | J127: 2017-01-06
B128: KY | C128: USA | D128: Kentucky | H128: 68 | I128: Ajuste en Pagos por separación No acumulable | J128: 2017-01-06
B129: LA | C129: USA | D129: Luisiana | H129: 69 | I129: Ajuste en Jubilaciones, pensiones o haberes de retiro en parcialidades Exento | J129: 2018-10-15
B130: ME | C130: USA | D130: Maine | H130: 70 | I130: Ajuste en Jubilaciones, pensiones o haberes de retiro en parcialidades Gravado | J130: 2018-10-15
B131: MD | C131: USA | D131: Maryland | H131: 71 | I131: Ajuste en Subsidio para el empleo (efectivamente entregado al trabajador) | J131: 2017-01-06
B132: MA | C132: USA | D132: Massachusetts | H132: 72 | I132: Ajuste en Ingresos en acciones o títulos valor que representan bienes Exento | J132: 2017-01-06 | K132: 2018-10-14
B133: MI | C133: USA | D133: Míchigan | H133: 73 | I133: Ajuste en Ingresos en acciones o títulos valor que representan bienes Gravado | J133: 2017-01-06
B134: MN | C134: USA | D134: Minnesota | H134: 74 | I134: Ajuste en Alimentación Exento | J134: 2017-01-06
B135: MS | C135: USA | D135: Misisipi | H135: 75 | I135: Ajuste en Alimentación Gravado | J135: 2017-01-06
B136: MO | C136: USA | D136: Misuri | H136: 76 | I136: Ajuste en Habitación Exento | J136: 2017-01-06
B137: MT | C137: USA | D137: Montana | H137: 77 | I137: Ajuste en Habitación Gravado | J137: 2017-01-06
B138: NE | C138: USA | D138: Nebraska | H138: 78 | I138: Ajuste en Premios por asistencia | J138: 2017-01-06
B139: NV | C139: USA | D139: Nevada | H139: 79 | I139: Ajuste en Pagos distintos a los listados y que no deben considerarse como ingreso por sueldos, salarios o ingresos asimilados. | J139: 2017-01-06
B140: NJ | C140: USA | D140: Nueva Jersey | H140: 80 | I140: Ajuste en Viáticos gravados | J140: 2017-01-06
B141: NY | C141: USA | D141: Nueva York | H141: 81 | I141: Ajuste en Viáticos (entregados al trabajador) | J141: 2017-01-06
B142: NH | C142: USA | D142: Nuevo Hampshire | H142: 082 | I142: Ajuste en Fondo de ahorro Gravado | J142: 2017-01-06
B143: NM | C143: USA | D143: Nuevo México | H143: 083 | I143: Ajuste en Caja de ahorro Gravado | J143: 2017-01-06
B144: OH | C144: USA | D144: Ohio | H144: 084 | I144: Ajuste en Prima de Seguro de vida Gravado | J144: 2017-01-06
B145: OK | C145: USA | D145: Oklahoma | H145: 085 | I145: Ajuste en Seguro de Gastos Médicos Mayores Gravado | J145: 2017-01-06
B146: OR | C146: USA | D146: Oregón | H146: 086 | I146: Ajuste en Subsidios por incapacidad Gravado | J146: 2017-01-06
B147: PA | C147: USA | D147: Pensilvania | H147: 087 | I147: Ajuste en Becas para trabajadores y/o hijos Gravado | J147: 2017-01-06
B148: RI | C148: USA | D148: Rhode Island | H148: 088 | I148: Ajuste en Seguro de retiro Gravado | J148: 2017-01-06
B149: TN | C149: USA | D149: Tennessee | H149: 089 | I149: Ajuste en Vales de despensa Gravado | J149: 2017-01-06
B150: TX | C150: USA | D150: Texas | H150: 090 | I150: Ajuste en Vales de restaurante Gravado | J150: 2017-01-06
B151: UT | C151: USA | D151: Utah | H151: 091 | I151: Ajuste en Vales de gasolina Gravado | J151: 2017-01-06
B152: VT | C152: USA | D152: Vermont | H152: 092 | I152: Ajuste en Vales de ropa Gravado | J152: 2017-01-06
B153: VA | C153: USA | D153: Virginia | H153: 093 | I153: Ajuste en Ayuda para renta Gravado | J153: 2017-01-06
B154: WV | C154: USA | D154: Virginia Occidental | H154: 094 | I154: Ajuste en Ayuda para artículos escolares Gravado | J154: 2017-01-06
B155: WA | C155: USA | D155: Washington | H155: 095 | I155: Ajuste en Ayuda para anteojos Gravado | J155: 2017-01-06
B156: WI | C156: USA | D156: Wisconsin | H156: 096 | I156: Ajuste en Ayuda para transporte Gravado | J156: 2017-01-06
B157: WY | C157: USA | D157: Wyoming | H157: 097 | I157: Ajuste en Ayuda para gastos de funeral Gravado | J157: 2017-01-06
B158: ON | C158: CAN | D158: Ontario | H158: 098 | I158: Ajuste a ingresos asimilados a salarios gravados | J158: 2017-01-06
B159: QC | C159: CAN | D159: Quebec | H159: 099 | I159: Ajuste a ingresos por sueldos y salarios gravados | J159: 2017-01-06
B160: NS | C160: CAN | D160: Nueva Escocia | H160: 100 | I160: Ajuste en Viáticos exentos | J160: 2017-01-06
B161: NB | C161: CAN | D161: Nuevo Brunswick | H161: 101 | I161: ISR Retenido de ejercicio anterior | J161: 2017-12-05
B162: MB | C162: CAN | D162: Manitoba | H162: 102 | I162: Ajuste a pagos por gratificaciones, primas, compensaciones, recompensas u otros a extrabajadores derivados de jubilación en parcialidades, gravados | J162: 2018-10-15
B163: BC | C163: CAN | D163: Columbia Británica | H163: 103 | I163: Ajuste a pagos que se realicen a extrabajadores que obtengan una jubilación en parcialidades derivados de la ejecución de una resolución judicial o de un laudo gravados | J163: 2018-10-15
B164: PE | C164: CAN | D164: Isla del Príncipe Eduardo | H164: 104 | I164: Ajuste a pagos que se realicen a extrabajadores que obtengan una jubilación en parcialidades derivados de la ejecución de una resolución judicial o de un laudo exentos | J164: 2018-10-15
B165: SK | C165: CAN | D165: Saskatchewan | H165: 105 | I165: Ajuste a pagos que se realicen a extrabajadores que obtengan una jubilación en una sola exhibición derivados de la ejecución de una resolución judicial o de un laudo gravados | J165: 2018-10-15
B166: AB | C166: CAN | D166: Alberta | H166: 106 | I166: Ajuste a pagos que se realicen a extrabajadores que obtengan una jubilación en una sola exhibición derivados de la ejecución de una resolución judicial o de un laudo exentos | J166: 2018-10-15
B167: NL | C167: CAN | D167: Terranova y Labrador
B168: NT | C168: CAN | D168: Territorios del Noroeste
B169: YT | C169: CAN | D169: Yukón
B170: UN | C170: CAN | D170: Nunavut
B185: c_TipoPercepcion | C185: Descripción | D185: Gravado | E185: Exento | F185: Régimen | G185: Régimen consula | H185: c_TipoRegimen | I185: Descripción
B186: 1 | C186: Sueldos, Salarios Rayas y Jornales | D186: a | E186: r | F186: 2 | G186: =F186-B186 -> 1 | H186: 2 | I186: Sueldos (Incluye ingresos señalados en la fracción I del artículo 94 de LISR) | J186: 2
B187: 2 | C187: Gratificación Anual (Aguinaldo) | D187: a | E187: a | F187: 2 | G187: 0 | H187: 3 | I187: Jubilados | J187: 3412
B188: 3 | C188: Participación de los Trabajadores en las Utilidades PTU | D188: a | E188: a | F188: 2 | G188: -1 | H188: 4 | I188: Pensionados | J188: 3412
B189: 4 | C189: Reembolso de Gastos Médicos Dentales y Hospitalarios | D189: a | E189: a | F189: 2 | G189: -2 | H189: 5 | I189: Asimilados Miembros Sociedades Cooperativas Produccion | J189: 567891011
B190: 5 | C190: Fondo de Ahorro | D190: a | E190: a | F190: 2 | G190: -3 | H190: 6 | I190: Asimilados Integrantes Sociedades Asociaciones Civiles | J190: 567891011
B191: 6 | C191: Caja de ahorro | D191: a | E191: a | F191: 2 | G191: -4 | H191: 7 | I191: Asimilados Miembros consejos | J191: 567891011
B192: 9 | C192: Contribuciones a Cargo del Trabajador Pagadas por el Patrón | D192: a | E192: r | F192: 2 | G192: -7 | H192: 8 | I192: Asimilados comisionistas | J192: 567891011
B193: 10 | C193: Premios por puntualidad | D193: a | E193: r | F193: 2 | G193: -8 | H193: 9 | I193: Asimilados Honorarios | J193: 567891011
B194: 11 | C194: Prima de Seguro de vida | D194: a | E194: a | F194: 2 | G194: -9 | H194: 10 | I194: Asimilados acciones | J194: 567891011
B195: 12 | C195: Seguro de Gastos Médicos Mayores | D195: a | E195: a | F195: 2 | G195: -10 | H195: 11 | I195: Asimilados otros | J195: 567891011
B196: 13 | C196: Cuotas Sindicales Pagadas por el Patrón | D196: a | E196: a | F196: 2 | G196: -11 | H196: 12 | I196: Jubilados o Pensionados | J196: 3412
B197: 14 | C197: Subsidios por incapacidad | D197: a | E197: a | F197: 2 | G197: -12 | H197: 13 | I197: Indemnización o Separación | J197: 13
B198: 15 | C198: Becas para trabajadores y/o hijos | D198: a | E198: a | F198: 2 | G198: -13 | H198: 99 | I198: Otro Regimen | J198: 99
B199: 19 | C199: Horas extra | D199: a | E199: a | F199: 2 | G199: -17
B200: 20 | C200: Prima dominical | D200: a | E200: a | F200: 2 | G200: -18
B201: 21 | C201: Prima vacacional | D201: a | E201: a | F201: 2 | G201: -19
B202: 24 | C202: Seguro de retiro | D202: a | E202: a | F202: 2 | G202: -22
B203: 26 | C203: Reembolso por funeral | D203: a | E203: a | F203: 2 | G203: -24
B204: 27 | C204: Cuotas de seguridad social pagadas por el patrón | D204: r | E204: a | F204: 2 | G204: -25
B205: 28 | C205: Comisiones | D205: a | E205: r | F205: 2 | G205: -26
B206: 29 | C206: Vales de despensa | D206: a | E206: a | F206: 2 | G206: -27
B207: 30 | C207: Vales de restaurante | D207: a | E207: a | F207: 2 | G207: -28
B208: 31 | C208: Vales de gasolina | D208: a | E208: a | F208: 2 | G208: -29
B209: 32 | C209: Vales de ropa | D209: a | E209: a | F209: 2 | G209: -30
B210: 33 | C210: Ayuda para renta | D210: a | E210: a | F210: 2 | G210: -31
B211: 34 | C211: Ayuda para artículos escolares | D211: a | E211: a | F211: 2 | G211: -32
B212: 35 | C212: Ayuda para anteojos | D212: a | E212: a | F212: 2 | G212: -33
B213: 36 | C213: Ayuda para transporte | D213: a | E213: a | F213: 2 | G213: -34
B214: 37 | C214: Ayuda para gastos de funeral | D214: a | E214: a | F214: 2 | G214: -35
B215: 38 | C215: Otros ingresos por salarios | D215: a | E215: a | F215: 2 | G215: -36
B216: 47 | C216: Alimentación diferentes a los establecidos en el Art 94 último párrafo LISR | D216: a | E216: a | F216: 2 | G216: -45
B217: 48 | C217: Habitación | D217: a | E217: a | F217: 2 | G217: -46
... 12 more rows

Sheet INPC (hidden)
C4: ENERO | D4: FEBRERO | E4: MARZO | F4: ABRIL | G4: MAYO | H4: JUNIO | I4: JULIO | J4: AGOSTO | K4: SEPTIEMBRE | L4: OCTUBRE | M4: NOVIEMBRE | N4: DICIEMBRE
B5: 2024 | C5: 133.555 | D5: 133.681 | E5: 134.065 | F5: 134.336 | G5: 134.087 | H5: 134.594 | I5: 136.003 | J5: 136.003 | K5: 136.08 | L5: 136.828
B6: 2023 | C6: 127.336 | D6: 128.046 | E6: 128.389 | F6: 128.363 | G6: 128.084 | H6: 128.214 | I6: 128.832 | J6: 129.545 | K6: 130.12 | L6: 130.609 | M6: 131.445 | N6: 132.373
B7: 2022 | C7: 118.002 | D7: 118.981 | E7: 120.159 | F7: 120.809 | G7: 121.022 | H7: 122.044 | I7: 122.948 | J7: 123.803 | K7: 124.571 | L7: 125.276 | M7: 125.997 | N7: 126.478
B8: 2021 | C8: 110.21 | D8: 110.907 | E8: 111.824 | F8: 112.19 | G8: 112.419 | H8: 113.018 | I8: 113.682 | J8: 113.899 | K8: 114.601 | L8: 115.561 | M8: 116.884 | N8: 117.308
B9: 2020 | C9: 106.447 | D9: 106.889 | E9: 106.838 | F9: 105.755 | G9: 106.162 | H9: 106.743 | I9: 107.444 | J9: 107.867 | K9: 108.114 | L9: 108.774 | M9: 108.856 | N9: 109.271
B10: 2019 | C10: 103.108 | D10: 103.079 | E10: 103.476 | F10: 103.531 | G10: 103.233 | H10: 103.299 | I10: 103.687 | J10: 103.67 | K10: 103.942 | L10: 104.503 | M10: 105.346 | N10: 105.934
B11: 2018 | C11: 98.7949997 | D11: 99.17137448 | E11: 99.49215698 | F11: 99.15484705 | G11: 98.99408017 | H11: 99.37646493 | I11: 99.9090991 | J11: 100.492 | K11: 100.917 | L11: 101.44 | M11: 102.303 | N11: 103.02
B12: 2017 | C12: 93.60388244 | D12: 94.14478034 | E12: 94.72248933 | F12: 94.83893263 | G12: 94.72549432 | H12: 94.96363964 | I12: 95.32273574 | J12: 95.79376765 | K12: 96.09351524 | L12: 96.69826913 | M12: 97.69517399 | N12: 98.27288299
B13: 2016 | C13: 89.38638139 | D13: 89.77778112 | E13: 89.9100006 | F13: 89.62527796 | G13: 89.22561452 | H13: 89.32402789 | I13: 89.55691448 | J13: 89.80933349 | K13: 90.35774385 | L13: 90.90615422 | M13: 91.61683394 | N13: 92.0390348
B14: 2015 | C14: 87.11010277 | D14: 87.27537713 | E14: 87.63071699 | F14: 87.40384038 | G14: 86.96736583 | H14: 87.11310776 | I14: 87.24081976 | J14: 87.42487529 | K14: 87.75241902 | L14: 88.2039185 | M14: 88.68546788 | N14: 89.04681772
B15: 2014 | C15: 84.51905163 | D15: 84.73315704 | E15: 84.96529239 | F15: 84.80677925 | G15: 84.53557906 | H15: 84.68207224 | I15: 84.91495883 | J15: 85.21996514 | K15: 85.59633992 | L15: 86.06962558 | M15: 86.76377787 | N15: 87.18898371
B16: 2013 | C16: 80.89278202 | D16: 81.29094297 | E16: 81.88743314 | F16: 81.94152293 | G16: 81.66882024 | H16: 81.61923793 | I16: 81.59219304 | J16: 81.82432839 | K16: 82.13233968 | L16: 82.52298816 | M16: 83.29226516 | N16: 83.7700583
B17: 2012 | C17: 78.34304946 | D17: 78.50231384 | E17: 78.54738867 | F17: 78.30097963 | G17: 78.05381934 | H17: 78.41366669 | I17: 78.85389747 | J17: 79.0905403 | K17: 79.43911894 | L17: 79.84103612 | M17: 80.3834365 | N17: 80.56824328
B18: 2011 | C18: 75.29599135 | D18: 75.57846024 | E18: 75.72345093 | F18: 75.71744095 | G18: 75.15926438 | H18: 75.15550814 | I18: 75.51610674 | J18: 75.63555502 | K18: 75.82111305 | L18: 76.3327123 | M18: 77.15833283 | N18: 77.79238536
B19: 2010 | C19: 72.55204598 | D19: 72.97167051 | E19: 73.48972549 | F19: 73.25556464 | G19: 72.79397765 | H19: 72.77118323 | I19: 72.92919 | J19: 73.1317495 | K19: 73.51511019 | L19: 73.96892635 | M19: 74.56158125 | N19: 74.93095445
B20: 2009 | C20: 69.45614941 | D20: 69.60949368 | E20: 70.00995018 | F20: 70.25499019 | G20: 70.05035847 | H20: 70.17935416 | I20: 70.37051645 | J20: 70.53888432 | K20: 70.89271587 | L20: 71.10719063 | M20: 71.47604578 | N20: 71.77185517
B21: 2008 | C21: 65.35056368 | D21: 65.5448343 | E21: 66.01989072 | F21: 66.17012666 | G21: 66.09863507 | H21: 66.3721681 | I21: 66.74205936 | J21: 67.12749227 | K21: 67.58493481 | L21: 68.04548569 | M21: 68.81894178 | N21: 69.29555236
B22: 2007 | C22: 63.01620793 | D22: 63.19234663 | E22: 63.32911314 | F22: 63.29129513 | G22: 62.98253436 | H22: 63.05817039 | I22: 63.32600481 | J22: 63.58399619 | K22: 64.07770259 | L22: 64.32740509 | M22: 64.78122126 | N22: 65.04905568
B23: 2006 | C23: 60.60362589 | D23: 60.69635773 | E23: 60.77251181 | F23: 60.86161727 | G23: 60.59067451 | H23: 60.64299806 | I23: 60.80929371 | J23: 61.11960865 | K23: 61.73661213 | L23: 62.00651878 | M23: 62.3318573 | N23: 62.69242357
B24: 2005 | C24: 58.30916037 | D24: 58.50343099 | E24: 58.76712098 | F24: 58.97641519 | G24: 58.82825146 | H24: 58.77178347 | I24: 59.00179988 | J24: 59.07225536 | K24: 59.30900649 | L24: 59.45457994 | M24: 59.88249335 | N24: 60.25031239
B25: 2004 | C25: 55.77431735 | D25: 56.10794476 | E25: 56.29807094 | F25: 56.38303195 | G25: 56.24160294 | H25: 56.33174451 | I25: 56.47939018 | J25: 56.82804118 | K25: 57.29791705 | L25: 57.69474717 | M25: 58.1868994 | N25: 58.30708815
B26: 2003 | C26: 53.52544068 | D26: 53.67412245 | E26: 54.01293041 | F26: 54.1051442 | G26: 53.93055967 | H26: 53.9751124 | I26: 54.0533387 | J26: 54.21548991 | K26: 54.53823816 | L26: 54.73820739 | M26: 55.19254161 | N26: 55.42981079
B27: 2002 | C27: 50.90047201 | D27: 50.86774985 | E27: 51.12794844 | F27: 51.40723497 | G27: 51.51142923 | H27: 51.76258618 | I27: 51.91118135 | J27: 52.1085603 | K27: 52.42198356 | L27: 52.65303609 | M27: 53.07887728 | N27: 53.3099298
B28: 2001 | C28: 48.57547625 | D28: 48.54332816 | E28: 48.85088778 | F28: 49.09730863 | G28: 49.20997046 | H28: 49.32636377 | I28: 49.19820196 | J28: 49.48968755 | K28: 49.95038115 | L28: 50.17613537 | M28: 50.36514891 | N28: 50.43489879
B29: 2000 | C29: 44.93083012 | D29: 45.32938031 | E29: 45.58068078 | F29: 45.84001827 | G29: 46.01137907 | H29: 46.28392024 | I29: 46.46446621 | J29: 46.71978519 | K29: 47.0610716 | L29: 47.38513583 | M29: 47.79028786 | N29: 48.30767118
B30: 1999 | C30: 40.46977028 | D30: 41.01364281 | E30: 41.39468378 | F30: 41.77457661 | G30: 42.02587708 | H30: 42.3020062 | I30: 42.58157977 | J30: 42.82125526 | K30: 43.23501839 | L30: 43.50885123 | M30: 43.89577645 | N30: 44.33551639
B31: 1998 | C31: 34.00392411 | D31: 34.59923784 | E31: 35.0045334 | F31: 35.33204206 | G31: 35.61348136 | H31: 36.03442041 | I31: 36.38187811 | J31: 36.7316321 | K31: 37.32737639 | L31: 37.86226893 | M31: 38.53278623 | N31: 39.47297432
B32: 1997 | C32: 29.49888603 | D32: 29.99459809 | E32: 30.36788907 | F32: 30.69597181 | G32: 30.97611945 | H32: 31.25095691 | I32: 31.52321104 | J32: 31.8035022 | K32: 32.19961259 | L32: 32.45694082 | M32: 32.82004201 | N32: 33.27987451
B33: 1996 | C33: 23.32975376 | D33: 23.87426203 | E33: 24.39982588 | F33: 25.09344962 | G33: 25.5508423 | H33: 25.96690173 | I33: 26.33603069 | J33: 26.68607171 | K33: 27.11275149 | L33: 27.45116754 | M33: 27.86708345 | N33: 28.75933645
B34: 1995 | C34: 15.37699094 | D34: 16.02870735 | E34: 16.9736172 | F34: 18.32613326 | G34: 19.09209019 | H34: 19.69802427 | I34: 20.09958836 | J34: 20.43298127 | K34: 20.85564253 | L34: 21.28476212 | M34: 21.80960838 | N34: 22.52016727
B35: 1994 | C35: 13.95037498 | D35: 14.02212406 | E35: 14.09422476 | F35: 14.1632513 | G35: 14.23168224 | H35: 14.30289457 | I35: 14.36632677 | J35: 14.43328665 | K35: 14.53593664 | L35: 14.6122453 | M35: 14.69036086 | N35: 14.81920437
B36: 1993 | C36: 12.97731976 | D36: 13.08334531 | E36: 13.15959369 | F36: 13.2354804 | G36: 13.31113749 | H36: 13.38579712 | I36: 13.45012344 | J36: 13.52211219 | K36: 13.62226067 | L36: 13.67797303 | M36: 13.73830236 | N36: 13.8430549
B37: 1992 | C37: 11.65777847 | D37: 11.79590044 | E37: 11.91594772 | F37: 12.02217132 | G37: 12.10143789 | H37: 12.18334519 | I37: 12.26027241 | J37: 12.33559223 | K37: 12.44289652 | L37: 12.53249354 | M37: 12.63662034 | N37: 12.81655348
B38: 1991 | C38: 9.883879895 | D38: 10.05642472 | E38: 10.19983964 | F38: 10.30668755 | G38: 10.40744167 | H38: 10.51664758 | I38: 10.60958427 | J38: 10.68342298 | K38: 10.78985037 | L38: 10.91534274 | M38: 11.1863741 | N38: 11.44967987
B39: 1990 | C39: 7.776037302 | D39: 7.952119854 | E39: 8.09230992 | F39: 8.215471549 | G39: 8.358837676 | H39: 8.542938589 | I39: 8.698734834 | J39: 8.846950442 | K39: 8.973061369 | L39: 9.102059888 | M39: 9.343723103 | N39: 9.638213954
B40: 1989 | C40: 6.349023793 | D40: 6.435183543 | E40: 6.504944899 | F40: 6.602224445 | G40: 6.693098769 | H40: 6.774384637 | I40: 6.842148218 | J40: 6.907332776 | K40: 6.973392795 | L40: 7.076525015 | M40: 7.175855437 | N40: 7.418029579
B41: 1988 | C41: 4.718245936 | D41: 5.11178304 | E41: 5.373547426 | F41: 5.538940737 | G41: 5.646108688 | H41: 5.761292137 | I41: 5.857456543 | J41: 5.911343343 | K41: 5.945139022 | L41: 5.990486483 | M41: 6.070654347 | N41: 6.197316386
B42: 1987 | C42: 1.704401293 | D42: 1.82738639 | E42: 1.948152699 | F42: 2.11860646 | G42: 2.278325059 | H42: 2.443145733 | I42: 2.641021527 | J42: 2.856871549 | K42: 3.045081395 | L42: 3.298844634 | M42: 3.560511423 | N42: 4.086392459
B43: 1986 | C43: 0.8340922314 | D43: 0.8711744774 | E43: 0.9116667168 | F43: 0.9592631115 | G43: 1.012570099 | H43: 1.077566644 | I43: 1.131332893 | J43: 1.221531243 | K43: 1.294811669 | L43: 1.368824029 | M43: 1.461304324 | N43: 1.576734626
B44: 1985 | C44: 0.5027114465 | D44: 0.5235962218 | E44: 0.5438853996 | F44: 0.5606210622 | G44: 0.5739022409 | H44: 0.5882755934 | I44: 0.6087628237 | J44: 0.6353768519 | K44: 0.6607523142 | L44: 0.6858522231 | M44: 0.717495125 | N44: 0.7663401306
B45: 1984 | C45: 0.3127277179 | D45: 0.3292323176 | E45: 0.3433042813 | F45: 0.35815555 | G45: 0.3700316859 | H45: 0.383423376 | I45: 0.3959927058 | J45: 0.4072488386 | K45: 0.4193804378 | L45: 0.434033654 | M45: 0.4489294132 | N45: 0.4679958155
B46: 1983 | C46: 0.1803550862 | D46: 0.1900339592 | E46: 0.1992320461 | F46: 0.2118458612 | G46: 0.221033903 | H46: 0.2294038894 | I46: 0.2407461334 | J46: 0.2500906071 | K46: 0.257787495 | L46: 0.2663411785 | M46: 0.2819832374 | N46: 0.2940473806
B47: 1982 | C47: 0.08586553576 | D47: 0.08923965376 | E47: 0.09249895005 | F47: 0.09751204377 | G47: 0.1029930085 | H47: 0.1079544314 | I47: 0.1135172022 | J47: 0.1262558789 | K47: 0.1329954996 | L47: 0.1398901172 | M47: 0.1469626971 | N47: 0.1626564164
B48: 1981 | C48: 0.06561511364 | D48: 0.06722682413 | E48: 0.06866487223 | F48: 0.070213437 | G48: 0.07127547043 | H48: 0.07227148812 | I48: 0.07354449426 | J48: 0.07506004857 | K48: 0.07645648132 | L48: 0.07815286789 | M48: 0.07965693692 | N48: 0.08180109914
B49: 1980 | C49: 0.05134222229 | D49: 0.05252911734 | E49: 0.05360981111 | F49: 0.05454698293 | G49: 0.05543679935 | H49: 0.05653614828 | I49: 0.05811484831 | J49: 0.0593189635 | K49: 0.05997771704 | L49: 0.06088618343 | M49: 0.061942482 | N49: 0.0635671076
B50: 1979 | C50: 0.04223742153 | D50: 0.04284450426 | E50: 0.04342575159 | F50: 0.04381468655 | G50: 0.044388764 | H50: 0.0448810302 | I50: 0.04542496203 | J50: 0.04611241581 | K50: 0.046677878 | L50: 0.04749306342 | M50: 0.04810445118 | N50: 0.04895551191
B51: 1978 | C51: 0.03589248098 | D51: 0.03640771256 | E51: 0.03678659726 | F51: 0.03719562757 | G51: 0.03756016213 | H51: 0.03807682873 | I51: 0.03872266197 | J51: 0.0391087269 | K51: 0.03955506753 | L51: 0.04003441863 | M51: 0.04044631378 | N51: 0.04078932317
B52: 1977 | C52: 0.03002689152 | D52: 0.03068994492 | E52: 0.03122526667 | F52: 0.0316974427 | G52: 0.03197586617 | H52: 0.03236767115 | I52: 0.03273364591 | J52: 0.03340530938 | K52: 0.03399804198 | L52: 0.03425781029 | M52: 0.03463238995 | N52: 0.03511174104
B53: 1976 | C53: 0.02331884624 | D53: 0.02375514178 | E53: 0.02398763968 | F53: 0.02415555684 | G53: 0.02432490901 | H53: 0.02442250021 | I53: 0.02462916788 | J53: 0.0248645358 | K53: 0.02571273168 | L53: 0.02716083005 | M53: 0.02838791062 | N53: 0.02909975961
B54: 1975 | C54: 0.0208158895 | D54: 0.02093070084 | E54: 0.02106273752 | F54: 0.02124069976 | G54: 0.02152486846 | H54: 0.02189083804 | I54: 0.02206593026 | J54: 0.0222568128 | K54: 0.02241898474 | L54: 0.02253380126 | M54: 0.02269167334 | N54: 0.02287681064
B55: 1974 | C55: 0.01765274421 | D55: 0.01805172426 | E55: 0.01819094117 | F55: 0.01843778919 | G55: 0.01858274615 | H55: 0.01876644845 | I55: 0.01903769686 | J55: 0.01923862448 | K55: 0.01945677226 | L55: 0.01984283201 | M55: 0.02039394408 | N55: 0.02055325116
B56: 1973 | C56: 0.01424562093 | D56: 0.01436330748 | E56: 0.01448960411 | F56: 0.01471923198 | G56: 0.01487566904 | H56: 0.01499765545 | I56: 0.01538228537 | J56: 0.01562913857 | K56: 0.0160008482 | L56: 0.01620608086 | M56: 0.01640557347 | N56: 0.01704279146
B57: 1972 | C57: 0.01336154975 | D57: 0.01340317028 | E57: 0.01347636627 | F57: 0.01356104236 | G57: 0.01358830759 | H57: 0.01368876881 | I57: 0.01374043962 | J57: 0.01383085575 | K57: 0.01389400148 | L57: 0.01390404656 | M57: 0.0139944627 | N57: 0.01404182846
B58: 1971 | C58: 0.01279895758 | D58: 0.01285205821 | E58: 0.01290085381 | F58: 0.01296687474 | G58: 0.01299414515 | H58: 0.01305298584 | I58: 0.01304294075 | J58: 0.01316205713 | K58: 0.01320511268 | L58: 0.01321803297 | M58: 0.01323955816 | N58: 0.01330270906
B59: 1970 | C59: 0.0121976149 | D59: 0.01219617989 | E59: 0.01223206037 | F59: 0.01224784551 | G59: 0.01227368091 | H59: 0.01234831191 | I59: 0.01240858761 | J59: 0.01246599328 | K59: 0.01249613372 | L59: 0.01250043876 | M59: 0.01256789469 | N59: 0.01267409597
B60: 1969 | C60: 0.01159484238 | D60: 0.01163645774 | E60: 0.01164794302 | F60: 0.01167951329 | G60: 0.01167951329 | H60: 0.01172113383 | I60: 0.01176562439 | J60: 0.01177854468 | K60: 0.01188905099 | L60: 0.0120139126 | M60: 0.01201534761 | N60: 0.01210576375

Sheet c_Estado (hidden)
A1: Catálogo de estados.
A2: Versión CFDI | B2: Versión catálogo | C2: Revisión catálogo | D2: Fecha publicación de catálogo | E2: Fecha inicio de vigencia del catálogo | F2: Fecha fin de vigencia del catálogo
A3: 4 | B3: 1 | C3: 0 | D3: 0 | E3: 2022-01-01
A5: c_Estado | B5: c_Pais | C5: Nombre del estado | D5: Fecha inicio de vigencia | E5: Fecha fin de vigencia
A6: AGU | B6: MEX | C6: Aguascalientes | D6: 2022-01-01
A7: BCN | B7: MEX | C7: Baja California | D7: 2022-01-01
A8: BCS | B8: MEX | C8: Baja California Sur | D8: 2022-01-01
A9: CAM | B9: MEX | C9: Campeche | D9: 2022-01-01
A10: CHP | B10: MEX | C10: Chiapas | D10: 2022-01-01
A11: CHH | B11: MEX | C11: Chihuahua | D11: 2022-01-01
A12: COA | B12: MEX | C12: Coahuila | D12: 2022-01-01
A13: COL | B13: MEX | C13: Colima | D13: 2022-01-01
A14: CMX | B14: MEX | C14: Ciudad de México | D14: 2022-01-01
A15: DUR | B15: MEX | C15: Durango | D15: 2022-01-01
A16: GUA | B16: MEX | C16: Guanajuato | D16: 2022-01-01
A17: GRO | B17: MEX | C17: Guerrero | D17: 2022-01-01
A18: HID | B18: MEX | C18: Hidalgo | D18: 2022-01-01
A19: JAL | B19: MEX | C19: Jalisco | D19: 2022-01-01
A20: MEX | B20: MEX | C20: Estado de México | D20: 2022-01-01
A21: MIC | B21: MEX | C21: Michoacán | D21: 2022-01-01
A22: MOR | B22: MEX | C22: Morelos | D22: 2022-01-01
A23: NAY | B23: MEX | C23: Nayarit | D23: 2022-01-01
A24: NLE | B24: MEX | C24: Nuevo León | D24: 2022-01-01
A25: OAX | B25: MEX | C25: Oaxaca | D25: 2022-01-01
A26: PUE | B26: MEX | C26: Puebla | D26: 2022-01-01
A27: QUE | B27: MEX | C27: Querétaro | D27: 2022-01-01
A28: ROO | B28: MEX | C28: Quintana Roo | D28: 2022-01-01
A29: SLP | B29: MEX | C29: San Luis Potosí | D29: 2022-01-01
A30: SIN | B30: MEX | C30: Sinaloa | D30: 2022-01-01
A31: SON | B31: MEX | C31: Sonora | D31: 2022-01-01
A32: TAB | B32: MEX | C32: Tabasco | D32: 2022-01-01
A33: TAM | B33: MEX | C33: Tamaulipas | D33: 2022-01-01
A34: TLA | B34: MEX | C34: Tlaxcala | D34: 2022-01-01
A35: VER | B35: MEX | C35: Veracruz | D35: 2022-01-01
A36: YUC | B36: MEX | C36: Yucatán | D36: 2022-01-01
A37: ZAC | B37: MEX | C37: Zacatecas | D37: 2022-01-01
A38: AL | B38: USA | C38: Alabama | D38: 2022-01-01
A39: AK | B39: USA | C39: Alaska | D39: 2022-01-01
A40: AZ | B40: USA | C40: Arizona | D40: 2022-01-01
A41: AR | B41: USA | C41: Arkansas | D41: 2022-01-01
A42: CA | B42: USA | C42: California | D42: 2022-01-01
A43: NC | B43: USA | C43: Carolina del Norte | D43: 2022-01-01
A44: SC | B44: USA | C44: Carolina del Sur | D44: 2022-01-01
A45: CO | B45: USA | C45: Colorado | D45: 2022-01-01
A46: CT | B46: USA | C46: Connecticut | D46: 2022-01-01
A47: ND | B47: USA | C47: Dakota del Norte | D47: 2022-01-01
A48: SD | B48: USA | C48: Dakota del Sur | D48: 2022-01-01
A49: DE | B49: USA | C49: Delaware | D49: 2022-01-01
A50: FL | B50: USA | C50: Florida | D50: 2022-01-01
A51: GA | B51: USA | C51: Georgia | D51: 2022-01-01
A52: HI | B52: USA | C52: Hawái | D52: 2022-01-01
A53: ID | B53: USA | C53: Idaho | D53: 2022-01-01
A54: IL | B54: USA | C54: Illinois | D54: 2022-01-01
A55: IN | B55: USA | C55: Indiana | D55: 2022-01-01
A56: IA | B56: USA | C56: Iowa | D56: 2022-01-01
A57: KS | B57: USA | C57: Kansas | D57: 2022-01-01
A58: KY | B58: USA | C58: Kentucky | D58: 2022-01-01
A59: LA | B59: USA | C59: Luisiana | D59: 2022-01-01
A60: ME | B60: USA | C60: Maine | D60: 2022-01-01
A61: MD | B61: USA | C61: Maryland | D61: 2022-01-01
A62: MA | B62: USA | C62: Massachusetts | D62: 2022-01-01
A63: MI | B63: USA | C63: Míchigan | D63: 2022-01-01
A64: MN | B64: USA | C64: Minnesota | D64: 2022-01-01
A65: MS | B65: USA | C65: Misisipi | D65: 2022-01-01
A66: MO | B66: USA | C66: Misuri | D66: 2022-01-01
A67: MT | B67: USA | C67: Montana | D67: 2022-01-01
A68: NE | B68: USA | C68: Nebraska | D68: 2022-01-01
A69: NV | B69: USA | C69: Nevada | D69: 2022-01-01
A70: NJ | B70: USA | C70: Nueva Jersey | D70: 2022-01-01
A71: NY | B71: USA | C71: Nueva York | D71: 2022-01-01
A72: NH | B72: USA | C72: Nuevo Hampshire | D72: 2022-01-01
A73: NM | B73: USA | C73: Nuevo México | D73: 2022-01-01
A74: OH | B74: USA | C74: Ohio | D74: 2022-01-01
A75: OK | B75: USA | C75: Oklahoma | D75: 2022-01-01
A76: OR | B76: USA | C76: Oregón | D76: 2022-01-01
A77: PA | B77: USA | C77: Pensilvania | D77: 2022-01-01
A78: RI | B78: USA | C78: Rhode Island | D78: 2022-01-01
A79: TN | B79: USA | C79: Tennessee | D79: 2022-01-01
A80: TX | B80: USA | C80: Texas | D80: 2022-01-01
A81: UT | B81: USA | C81: Utah | D81: 2022-01-01
A82: VT | B82: USA | C82: Vermont | D82: 2022-01-01
A83: VA | B83: USA | C83: Virginia | D83: 2022-01-01
A84: WV | B84: USA | C84: Virginia Occidental | D84: 2022-01-01
A85: WA | B85: USA | C85: Washington | D85: 2022-01-01
A86: WI | B86: USA | C86: Wisconsin | D86: 2022-01-01
A87: WY | B87: USA | C87: Wyoming | D87: 2022-01-01
A88: ON | B88: CAN | C88: Ontario | D88: 2022-01-01
A89: QC | B89: CAN | C89: Quebec | D89: 2022-01-01
A90: NS | B90: CAN | C90: Nueva Escocia | D90: 2022-01-01
A91: NB | B91: CAN | C91: Nuevo Brunswick | D91: 2022-01-01
A92: MB | B92: CAN | C92: Manitoba | D92: 2022-01-01
A93: BC | B93: CAN | C93: Columbia Británica | D93: 2022-01-01
A94: PE | B94: CAN | C94: Isla del Príncipe Eduardo | D94: 2022-01-01
A95: SK | B95: CAN | C95: Saskatchewan | D95: 2022-01-01
A96: AB | B96: CAN | C96: Alberta | D96: 2022-01-01
A97: NL | B97: CAN | C97: Terranova y Labrador | D97: 2022-01-01
A98: NT | B98: CAN | C98: Territorios del Noroeste | D98: 2022-01-01
A99: YT | B99: CAN | C99: Yukón | D99: 2022-01-01
A100: UN | B100: CAN | C100: Nunavut | D100: 2022-01-01
